Cogmind - Beta 12 X1 @@@ ROGUE MODE // 2022.07.29 @ 18:45:38 Player: leiavoia Result: Destroyed by Executioner with Helical Railgun Performance ------------- Evolutions (9) 4500 Regions Visited (30) 6000 Robots Destroyed (653) 3265 Value Destroyed (37381) 37381 Prototype IDs (73) 1460 Alien Tech Used (14) 2800 Bonus (31736) 31736 TOTAL SCORE: 87142 Bonus ------- Triggered High Security 1500 High Alert Combat Kills 20212 Follower Combat Kills 1860 Entered Garrisons 800 Met Data Miner 300 Met Warlord at Base 500 MAIN.C Attacked Warlord 500 Warlord Defense Kills 608 Used Core Reset Matrix 3000 Met Warlord at Research 2000 Scanned by Researcher 500 Pursued by Intercept 1500 Friendly Fire -1544 Cogmind --------- Core Integrity 0/1600 Matter 248/300 Energy 787/790 System Corruption 38% Temperature Cool (12) Movement Hovering (52) Location -1/Command Parts ------- > --- POWER (3) -------- Quantum Reactor Quantum Reactor Light Quantum Reactor > --- PROPULSION (6) --- Antigrav Array Antigrav Array Antigrav Array > --- UTILITY (11) ----- Small Battery Long-range Sensor Array Advanced Signal Interpreter Advanced Component Analysis Suite > --- WEAPON (5) ------- Enhanced Nova Cannon Core Cannon > --- INVENTORY (5) ---- Antigrav Array Subatomic Replicator Peak State ------------ > --- POWER ------------ Cooled Antimatter Reactor Cooled Antimatter Reactor Improved Quantum Reactor > --- PROPULSION ------- Improved Heavy Siege Treads Biometal Heavy Treads Enhanced Armored Heavy Treads > --- UTILITY ---------- Huge Storage Unit Advanced Sensor Array Advanced Signal Interpreter Advanced Terrain Scanner Experimental Phase Shifter Heavy Regenerative Plating SHELL Armor Thermal Barrier > --- WEAPON ----------- Nova Cannon Enhanced Nova Cannon Enhanced Nova Cannon Enhanced Nova Cannon Advanced Micro-nuke Launcher > --- INVENTORY -------- Armored Heavy Treads Advanced Heavy Siege Treads Advanced Energy Well Experimental Matter Compressor Long-range Tractor Beam Drone Bay High-powered Transdimensional Reconstructor Subatomic Replicator Spacefold Activator Enhanced Quantum Rifle Nova Cannon Enhanced Nova Cannon Enhanced Nova Cannon Improved Potential Cannon Core Cannon Helical Railgun Graviton Cannon Fusion Bomb Launcher [Rating: 229] Favorites ----------- Power Improved Deuterium Engine Engine Improved Deuterium Engine Power Core Light Nuclear Core Reactor Particle Reactor Propulsion Advanced Treads Treads Advanced Treads Leg Aluminum Leg Wheel Compact Wheel Hover Unit Antigrav Array Flight Unit Electron Diverter Utility Huge Storage Unit Device Cooling System Storage Huge Storage Unit Processor Advanced Signal Interpreter Hackware Improved Hacking Suite Protection Hardened Heavy Armor Plating Artifact Spacefold Activator Weapon Enhanced Nova Cannon Energy Gun Improved Spread Laser Energy Cannon Enhanced Nova Cannon Ballistic Gun Hypervelocity Railgun Ballistic Cannon Light Cannon Launcher Improved Grenade Launcher Impact Weapon Power Maul Piercing Weapon Makeshift Spear Build | -11 -10 -10 -10 -9 -8 -8 -8 -7 -7 -7 -7 -6 -6 -6 -5 -5 -5 -5 -5 -5 -4 -4 -4 -3 -3 -3 -2 -2 -1 -1 ------- Run | Scr Mat Min Exi Min Mat Gar Mat Fac Low Low Dat Pro Fac Gar Fac Gar Fac Upp Upp War Pro Fac Gar Res Qua Sec Res Tes Acc Com Slots Evolved 18 | . . . . . 4 . . 2 . . . . 2 . 2 . . . . . . 2 . 2 . . 2 . 2 . Power 2 | . . . . . . . . . . . . . . . . . . . . . . 1 . . . . . . 1 . Propulsion 4 | . . . . . 1 . . 1 . . . . . . 2 . . . . . . . . . . . . . . . Utility 9 | . . . . . 2 . . 1 . . . . 2 . . . . . . . . 1 . 1 . . 1 . 1 . Weapon 3 | . . . . . 1 . . . . . . . . . . . . . . . . . . 1 . . 1 . . . Parts Attached 859 | . 14 1 . . 36 27 17 19 7 5 . 3 68 33 4 36 27 8 4 19 10 6 46 14 132 106 79 43 63 32 Power 46 | . 1 1 . . 2 1 1 1 . . . . 4 1 . 1 . . . . 1 1 1 . 2 5 7 1 8 7 Engine 9 | . 1 . . . 2 . 1 1 . . . . 3 1 . . . . . . . . . . . . . . . . Core 6 | . . 1 . . . . . . . . . . 1 . . . . . . . . . . . . . . . . 4 Reactor 31 | . . . . . . 1 . . . . . . . . . 1 . . . . 1 1 1 . 2 5 7 1 8 3 Propulsion 101 | . 4 . . . 10 7 4 2 . 1 . . 8 4 2 3 2 . . 2 2 . 2 4 13 6 10 1 8 6 Treads 93 | . 2 . . . 10 7 3 2 . 1 . . 8 4 2 3 2 . . 2 2 . 2 4 12 6 10 1 8 2 Leg 3 | . 2 . . . . . . . . . . . . . . . . . . . . . . . . . . . . 1 Wheel 1 | . . . . . . . 1 . . . . . . . . . . . . . . . . . . . . . . . Hover 3 | . . . . . . . . . . . . . . . . . . . . . . . . . . . . . . 3 Flight 1 | . . . . . . . . . . . . . . . . . . . . . . . . . 1 . . . . . Utility 458 | . 5 . . . 11 3 1 7 5 1 . 2 39 10 2 17 18 4 4 10 5 3 26 7 92 81 41 23 26 15 Device 331 | . . . . . 4 2 . 5 5 1 . 1 30 7 2 12 14 1 3 9 5 3 18 7 71 60 25 20 19 7 Storage 18 | . 2 . . . 1 . . . . . . 1 1 . . . . . . . . . . . 4 1 3 . 1 4 Processor 9 | . 1 . . . . . . . . . . . 1 1 . . . . . . . . . . 1 4 1 . . . Hackware 3 | . . . . . . . . . . . . . 2 . . . . . . . . . . . 1 . . . . . Protection 92 | . 2 . . . 6 1 1 2 . . . . 5 2 . 5 4 3 1 1 . . 8 . 15 12 12 3 5 4 Artifact 5 | . . . . . . . . . . . . . . . . . . . . . . . . . . 4 . . 1 . Weapon 254 | . 4 . . . 13 16 11 9 2 3 . 1 17 18 . 15 7 4 . 7 2 2 17 3 25 14 21 18 21 4 Energy Gun 17 | . . . . . 2 . 1 1 . 1 . . 2 5 . . . . . 3 . . 1 . . . 1 . . . Energy Cannon 77 | . . . . . 1 1 2 3 . . . . 4 1 . 3 . . . 1 1 . 5 1 12 6 6 14 13 3 Ballistic Gun 32 | . . . . . . . . . . . . . . 4 . 5 1 1 . 1 . 2 3 1 6 2 4 . 2 . Ballistic Cannon 50 | . 4 . . . 6 6 3 1 1 . . 1 2 1 . 1 . . . 1 . . 3 1 6 4 7 1 1 . Launcher 52 | . . . . . 4 4 1 1 1 1 . . 4 6 . 4 3 2 . . 1 . 5 . 1 2 3 3 5 1 Special Weapon . | . . . . . . . . . . . . . . . . . . . . . . . . . . . . . . . Impact Weapon 25 | . . . . . . 5 4 3 . . . . 5 1 . 2 3 1 . 1 . . . . . . . . . . Slashing Weapon . | . . . . . . . . . . . . . . . . . . . . . . . . . . . . . . . Piercing Weapon 1 | . . . . . . . . . . 1 . . . . . . . . . . . . . . . . . . . . Special Melee Weapon . | . . . . . . . . . . . . . . . . . . . . . . . . . . . . . . . Unidentified Prototypes 39 | . . . . . 1 . 1 1 . . . 1 1 . . 1 . . . 3 . . 1 . 7 9 6 3 4 . Corrupted Parts 2 | . . . . . . . . . . . . . . . . . . . . . 2 . . . . . . . . . System Corruption 14 | . . . . . . . . . . . . . . . . . . . . . 14 . . . . . . . . . Parts Lost 99 | . . . . . 2 6 1 . . . . 1 15 3 . 2 . . . . . . 5 . 3 23 2 . 27 9 Power 14 | . . . . . 1 . 1 . . . . . 2 . . . . . . . . . 1 . . 2 1 . 6 . Propulsion 18 | . . . . . . 5 . . . . . . 3 . . . . . . . . . . . . 5 . . 5 . Utility 48 | . . . . . . 1 . . . . . . 9 1 . 1 . . . . . . 4 . 1 11 1 . 10 9 Weapon 19 | . . . . . 1 . . . . . . 1 1 2 . 1 . . . . . . . . 2 5 . . 6 . Highest Loss Streak 12 | . . . . . 1 2 1 . . . . 1 4 1 . 1 . . . . . . 3 . 2 12 1 . 11 5 To Critical Strikes . | . . . . . . . . . . . . . . . . . . . . . . . . . . . . . . . Average Slot Usage (%) 85 | . 99 100 100 100 97 86 80 83 84 83 84 84 85 94 93 93 89 86 79 76 73 76 80 80 87 78 78 73 68 50 Engine 3 | . 14 10 . . 4 2 6 7 7 7 7 7 3 6 5 . . . . . . . . . . . . . . . Core 1 | . . 3 14 14 4 . . . . . . . 2 . . . . . . . . . . . . . . . . 2 Reactor 2 | . . . . . . 6 1 . . . . . . . . 5 5 5 5 5 5 10 5 4 4 4 7 8 9 4 Treads 23 | . 21 28 28 28 26 26 25 30 30 30 30 30 25 23 28 29 24 23 23 23 23 21 21 19 21 16 13 13 11 2 Device 12 | . . . . . 8 9 9 15 15 15 15 15 16 19 17 17 17 17 14 11 11 13 16 19 19 15 10 14 13 12 Storage 6 | . 14 14 14 14 9 9 9 7 7 7 7 7 6 6 5 5 5 5 5 5 5 5 5 4 4 4 4 4 3 1 Protection 12 | . 10 14 14 14 16 9 8 7 7 7 7 7 10 14 17 17 16 15 10 11 11 10 15 14 17 13 15 6 6 4 Energy Gun 2 | . 1 . . . 17 10 . . . . . . 1 6 5 1 . . . 1 6 5 . . . . 1 . . . Energy Cannon 3 | . . . . . . . 1 1 . . . . 3 2 . . . . . 2 2 4 4 8 9 13 11 18 18 4 Ballistic Gun 2 | . 1 . . . . . . . . . . . . 2 5 11 11 11 11 11 . 1 6 4 5 3 . . . . Ballistic Cannon 7 | . 25 28 28 28 9 7 9 7 11 7 7 7 6 1 . . . . . . . . 3 4 1 . 4 2 . . Launcher 1 | . . . . . . . . . 3 6 7 7 . 3 . 1 . 3 5 . 4 4 . . . . . . . . Naked Turns . | . . . . . . . . . . . . . . . . . . . . . . . . . . . . . . . Heaviest Build 252 | 12 98 98 98 98 123 143 139 140 142 142 142 142 160 132 116 174 166 164 164 181 171 201 217 215 224 215 225 249 252 90 Greatest Support 250 | 20 40 40 40 40 60 60 66 89 89 95 95 95 95 114 160 178 203 202 202 202 202 194 194 215 215 225 235 250 250 88 Greatest Overweight (x) 8 | . 2 2 2 2 2 3 8 1 1 1 1 1 1 1 1 1 . . . 1 . 1 1 1 1 2 1 . 1 1 Average Overweight (x) . | . 1 2 2 2 1 1 2 1 1 1 1 1 1 1 . . . . . . . . . . . . . . . . Largest Inventory Capacity 25 | 8 25 25 25 25 25 25 25 25 25 25 25 25 25 25 25 25 25 25 25 25 25 25 25 25 25 25 25 25 25 5 Average Capacity 24 | 8 22 25 25 25 25 25 25 25 25 25 25 25 25 25 25 25 25 25 25 25 25 25 25 25 25 25 25 25 24 5 Most Carried 25 | 7 25 25 25 25 25 25 25 25 25 25 25 25 25 25 25 25 25 25 25 25 25 24 25 25 25 25 25 25 25 5 Average Carried 24 | 6 20 25 25 25 24 24 24 24 25 25 25 24 24 24 23 24 24 25 24 24 24 23 24 24 24 23 23 24 22 4 Final Capacity 25 | 8 25 25 25 25 25 25 25 25 25 25 25 25 25 25 25 25 25 25 25 25 25 25 25 25 25 25 25 25 25 5 Final Carried 25 | 7 25 25 25 25 25 25 25 25 25 25 25 23 24 25 24 25 25 25 25 25 25 24 25 25 25 16 25 25 24 3 Class Distribution -------------------- 46% | Mutant 15% | Scavenger-Mutant 12% | Tank 9% | Scavenger-Tank 4% | Alien-Mutant 4% | Alien-Tank Dominant Class ---------------- Mutant | -10/Materials Mutant | -10/Mines Mutant | -10/Exiles Mutant | -9/Mines Tank | -8/Materials Mutant | -8/Garrison Mutant | -8/Materials Mutant | -7/Factory Tank | -7/Lower Caves Mutant | -7/Lower Caves Mutant | -7/Data Miner Mutant | -6/Proximity Caves Mutant | -6/Factory Scavenger-Mutant | -6/Garrison Scavenger-Mutant | -5/Factory Scavenger-Mutant | -5/Garrison Mutant | -5/Factory Mutant | -5/Upper Caves Mutant | -5/Upper Caves Commander-Mutant | -5/Warlord Mutant | -4/Proximity Caves Scavenger-Mutant | -4/Factory Scavenger-Mutant | -4/Garrison Scavenger-Mutant | -3/Research Scavenger-Tank | -3/Quarantine Scavenger-Tank | -3/Section 7 Alien-Tank | -2/Research Alien-Skirmisher | -2/Testing Alien-Skirmisher | -1/Access Alien-Mutant | -1/Command Resources | -11 -10 -10 -10 -9 -8 -8 -8 -7 -7 -7 -7 -6 -6 -6 -5 -5 -5 -5 -5 -5 -4 -4 -4 -3 -3 -3 -2 -2 -1 -1 ----------- Run | Scr Mat Min Exi Min Mat Gar Mat Fac Low Low Dat Pro Fac Gar Fac Gar Fac Upp Upp War Pro Fac Gar Res Qua Sec Res Tes Acc Com Matter Collected 21697 | 215 495 257 . 80 706 1011 745 632 222 384 . 407 2157 1076 . 1724 588 572 382 396 269 104 1786 105 3445 1905 533 691 567 243 Remotely 3558 | . . . . . . . . 115 . . . . 709 . . 643 86 . . 64 118 . 450 . 100 923 . 310 40 . Salvage Created 33709 | 65 591 147 . 166 1576 871 670 587 176 641 . 272 2315 1123 . 1555 539 487 673 282 316 102 1536 105 1594 4235 702 3300 8453 630 Parts 1325 | 2 26 8 . 9 95 42 32 24 11 31 . 8 96 37 . 68 35 10 16 1 8 5 74 6 100 198 27 128 187 41 Haulers Intercepted 10 | . 2 . . . 4 . 1 1 . . . . . . . . . . . . . . . . . 1 1 . . . Recyclers Shooed 12 | 1 . . . 1 2 . . . . . . . 6 . . . 1 . . . . . . . . . . . . 1 Parts Field Recycled . | . . . . . . . . . . . . . . . . . . . . . . . . . . . . . . . Retrieved Matter . | . . . . . . . . . . . . . . . . . . . . . . . . . . . . . . . Parts Self-Destructed 74 | . . . . . . . . . 10 26 . 6 . . . . . 12 14 . 6 . . . . . . . . . Prevented 1 | . . . . . . . . . . . . 1 . . . . . . . . . . . . . . . . . . Kills | -11 -10 -10 -10 -9 -8 -8 -8 -7 -7 -7 -7 -6 -6 -6 -5 -5 -5 -5 -5 -5 -4 -4 -4 -3 -3 -3 -2 -2 -1 -1 ------- Run | Scr Mat Min Exi Min Mat Gar Mat Fac Low Low Dat Pro Fac Gar Fac Gar Fac Upp Upp War Pro Fac Gar Res Qua Sec Res Tes Acc Com Combat Hostiles Destroyed 590 | . 10 2 . 3 35 34 19 12 7 25 . 15 46 25 . 26 9 10 13 4 14 2 28 1 18 57 12 42 113 8 Melee 1 | . . . . . . . . . . . . . . . . . . . . . . . . . . . . . . 1 Guns 102 | . 2 . . . 18 9 . . . . . . 7 6 . 16 6 2 2 4 8 2 7 . 10 3 . . . . Cannons 287 | . 8 2 . 3 7 13 16 12 2 6 . 6 27 5 . 1 . . . . . . 11 . 4 33 9 34 81 7 AOE 151 | . . . . . 10 11 3 . 5 19 . 9 11 14 . 9 3 8 11 . 6 . 9 . . 6 2 2 13 . Classes Destroyed 26 | 2 6 . . . 4 3 . . . . . 1 1 . . . . . . 1 1 . . . 1 5 1 . . . Worker 17 | . . . . . 3 . . . . . . . 2 . . . . . . . . . . . . 3 . 4 3 2 Builder 17 | . 2 . . . 2 . . 1 . . . . 3 . . . 2 . . . . . . . . 3 . 2 2 . Tunneler 3 | 1 . 1 . . . . 1 . . . . . . . . . . . . . . . . . . . . . . . Hauler 10 | . 2 . . . 4 . 1 1 . . . . . . . . . . . . . . . . . 1 1 . . . Recycler 19 | 1 2 1 . 1 2 . 1 . . . . . 5 . . . . . . . . . . . 1 3 . . 1 1 Mechanic 5 | . . . . . . . . . . . . . 1 . . . . . . . . . . . . 1 . . 3 . Operator 4 | . 1 . . . . . . . . . . . 1 . . . . . . . . . . . . 1 . . . 1 Watcher 10 | . 2 . . . 3 . . . . . . . 1 . . . 1 . . . . . . . . 1 . 1 1 . Swarmer 93 | . 1 . . . 9 7 3 . 3 7 . 8 9 4 . 7 4 1 . . 5 . 8 . . 3 2 7 5 . Saboteur 6 | . . . . . . . . . . . . . . . . . . . . . . . . . . 1 . . 4 1 Grunt 256 | . 9 2 . 3 18 10 10 6 3 14 . 3 19 18 . 12 1 6 9 3 7 . 9 . 3 14 3 23 51 . Brawler 13 | . . . . . . 1 . . . . . 1 1 . . . . 1 2 . . . . . . 2 . 1 4 . Duelist 12 | . . . . . 1 1 2 . . . . 1 . 1 . . . . 1 . 1 . . . . . . . 4 . Protector 3 | . . . . . . . . . . . . 1 . . . . . . . . . . . . . . . . 2 . Researcher 6 | . . . . . . . . . . . . . . . . . . . . . . . . . . 2 . 4 . . Sentry 54 | . . . . . 6 5 4 1 . 1 . 1 9 3 . 6 2 2 1 . . . 4 1 . 4 . 2 2 . Specialist 10 | . . . . . . 5 . . . . . . . . . 1 . . . . . . . . . . . . 4 . Hunter 32 | . . . . . 1 1 . 2 . . . . 2 . . . 2 . . . . . . . 2 8 . 2 12 . Programmer 59 | . . . . . . 4 . 3 1 . . . 6 . . . . . . . . 2 4 . . 12 . 4 16 7 Heavy 1 | . . . . . . . . . . . . . . . . . . . . . . . . . . 1 . . . . Q-Series 4 | . . . . . . . . . . . . . . . . . . . . . . . . . . 2 . 2 . . Behemoth 6 | . . . . . . . . . . . . . . . . . . . . . 1 . 3 . . 2 . . . . Quarantine Guard 12 | . . . . . . . . . . . . . . . . . . . . . . . . . 12 . . . . . S7 Guard 2 | . . . . . . . . . . . . . . . . . . . . . . . . . . 2 . . . . Tracker 5 | . . . . . . . . . . . . . . . . . . . . . . . . . . 1 2 . 2 . Combat Programmer 2 | . . . . . . . . . . . . . . . . . . . . . . . . . . 1 1 . . . Investigator 1 | . . . . . . . . . . . . . . . . . . . . . . . . . . . . . 1 . Striker 5 | . . . . . . . . . . . . . . . . . . . . . . . . . . . 1 . 4 . Executioner 9 | . . . . . . . . . . . . . . . . . . . . 1 . . . . . 2 3 . 3 . Alpha 7 3 | . . . . . . . . . . . . . . . . . . . . . . . . . . 2 . 1 . . Fortress 1 | . . . . . . . . . . . . . . . . . . . . . . . . . 1 . . . . . Packrat 2 | . . . . . . . . . . . . . . . . . . . 2 . . . . . . . . . . . Thug 4 | . . . . . . . . . . 3 . . . 1 . . . . . . . . . . . . . . . . Savage 1 | . . . . . . . . . . . . . . . . . 1 . . . . . . . . . . . . . Butcher 2 | . . . . . . 1 . . . . . . . . . 1 . . . . . . . . . . . . . . Best Kill Streak 37 | 2 4 2 . 3 5 7 7 4 3 7 . 8 14 5 . 8 4 7 7 2 7 2 7 1 3 14 5 13 37 10 Combat Bots Only 35 | . 3 2 . 3 4 7 7 3 3 7 . 8 10 5 . 8 3 7 7 2 7 2 7 1 3 9 5 8 35 7 Max Kills in Single Turn 14 | 1 1 1 . 2 2 4 2 1 2 3 . 2 3 2 . 3 3 2 2 2 4 1 2 1 1 14 2 3 3 2 Gunslinging 1 | . . . . . . . . . . . . . . . . . . . . . 1 . . . . . . . . . Exploded 6 | . . . . . 2 4 2 . 2 3 . 2 2 2 . 3 2 2 2 . 4 . 2 . . 6 2 2 2 . Melee 1 | . . . . . . . . . . . . . . . . . . . . . . . . . . . . . . 1 Uniques/NPCs Destroyed . | . . . . . . . . . . . . . . . . . . . . . . . . . . . . . . . Combat | -11 -10 -10 -10 -9 -8 -8 -8 -7 -7 -7 -7 -6 -6 -6 -5 -5 -5 -5 -5 -5 -4 -4 -4 -3 -3 -3 -2 -2 -1 -1 -------- Run | Scr Mat Min Exi Min Mat Gar Mat Fac Low Low Dat Pro Fac Gar Fac Gar Fac Upp Upp War Pro Fac Gar Res Qua Sec Res Tes Acc Com Damage Taken 51489 | . 496 10 . 59 1440 2129 867 413 156 438 . 391 3557 1282 . 1125 321 692 254 89 1293 48 3101 172 2633 9816 1112 3260 14487 1848 Core 3209 | . 10 . . 10 90 215 55 45 14 45 . 27 144 38 . 25 . 43 . 17 9 . 59 . 90 628 113 68 1122 342 Absorbed by Shields 8357 | . . . . . . 56 . . 32 91 . 143 302 122 . 426 59 242 185 88 377 9 1102 134 1466 2427 . 878 199 19 Reduced by Siege Mode 2562 | . . . . . . . . . . . . . . . . . . 5 . . 40 . 138 . 136 439 42 215 1547 . Redirected to Shielding 407 | . . . . . . . . . . . . . . . . . . . . . . . . . . . 46 . 37 324 Regen/Repaired (Parts) 6397 | . 113 . . . 242 . 440 . . . . . 274 . . . 165 . . 155 . . . . . 823 . 1466 2719 . Core Remaining (%) 77 | 100 . . . 92 . . 34 . . . . 81 . 78 . . . . . . 90 . 94 . . 39 . 86 . . Volleys Fired 1632 | 5 54 9 . 10 85 90 38 36 9 28 . 28 155 90 . 77 37 23 26 21 30 3 145 11 120 149 34 108 177 34 Largest 5 | 2 2 2 . 2 3 3 2 2 2 2 . 2 3 3 . 3 3 3 2 3 3 3 3 1 4 4 5 5 5 2 Hottest 593 | 70 70 70 . 70 194 194 135 144 123 111 . 111 207 174 . 178 120 120 80 156 156 125 225 120 400 400 519 579 593 300 Shots Fired 3819 | 10 108 18 . 20 185 130 57 47 12 30 . 30 237 149 . 186 71 49 37 45 60 8 269 11 316 456 96 381 748 53 Gun 977 | 10 18 . . . 111 46 . . . . . . 40 44 . 167 66 43 22 35 41 8 114 . 120 85 2 . 5 . Cannon 2637 | . 90 18 . 20 60 67 55 47 8 13 . 19 179 69 . 10 . . . 10 8 . 139 11 195 370 89 379 728 53 Launcher 205 | . . . . . 14 17 2 . 4 17 . 11 18 36 . 9 5 6 15 . 11 . 16 . 1 1 5 2 15 . Special . | . . . . . . . . . . . . . . . . . . . . . . . . . . . . . . . Kinetic 1347 | 5 99 18 . 20 59 60 47 24 8 13 . 19 95 30 . 158 66 43 22 34 3 6 131 . 181 127 6 45 28 . Thermal 2164 | 5 9 . . . 111 46 8 4 . . . . 110 83 . 19 . . . 9 5 . 107 8 134 329 85 334 705 53 Explosive 191 | . . . . . 5 17 2 . 4 17 . 11 18 36 . 9 5 6 15 . 11 . 12 . 1 . 5 2 15 . Electromagnetic 57 | . . . . . 10 7 . 19 . . . . 14 . . . . . . . . . 4 3 . . . . . . Entropic 60 | . . . . . . . . . . . . . . . . . . . . 2 41 2 15 . . . . . . . Robot Hit Streak 37 | 7 9 3 . 5 11 11 21 28 5 9 . 6 15 12 . 35 7 13 9 3 15 19 34 37 32 29 9 26 36 8 Robot Miss Streak 10 | 2 7 3 . 3 9 6 4 1 2 2 . 2 10 2 . 2 4 2 2 7 2 1 7 . 3 6 4 3 6 2 Penetration Max 2 | . . . . . . 1 1 . . . . . . . . 2 2 . 1 1 2 . 1 . 1 1 . . 1 . Secondary Targets 10 | . . . . . . 2 . . . . . . . . . 3 . . . . 3 . 2 . . . . . . . Max Gunslinging Chain 1 | . . . . . . 1 . . . . . . . . . 1 . . . . 1 . 1 . . . . . . . Shots Hit Robots 2360 | 7 68 9 . 11 129 98 42 39 6 16 . 16 159 85 . 136 33 40 29 13 42 5 150 3 238 261 37 208 460 20 Core Hits 1442 | 3 23 5 . 5 146 90 29 10 11 44 . 27 131 73 . 82 24 31 47 12 27 2 73 1 82 105 28 88 232 11 Critical Kills 101 | . . . . . . . . . . . . . . 2 . 13 9 2 4 4 . 1 6 . 13 20 1 8 17 1 Critical Parts Destroyed 95 | . . . . . . . . . . . . . . . . 20 11 5 4 6 5 2 13 . 19 10 . . . . Critical Strikes 270 | . 5 1 . . 3 4 3 1 . 1 . 4 6 7 . 44 20 13 8 11 5 3 23 . 42 35 1 11 18 1 Burn 4 | . 2 . . . . . . . . . . . . 1 . 1 . . . . . . . . . . . . . . Meltdown 45 | . . . . . . . . . . . . . . . . . . . . . . . 1 . 4 15 1 7 17 . Destroy 173 | . . . . . . . . . . . . . . 2 . 43 20 13 8 9 . 2 19 . 37 18 . 1 . 1 Blast 39 | . 3 1 . . 3 4 3 1 . 1 . 4 6 4 . . . . . 1 . . 1 . 1 2 . 3 1 . Detonate 9 | . . . . . . . . . . . . . . . . . . . . 1 5 1 2 . . . . . . . Melee Attacks 93 | . . . . . . 61 . 6 . . . . 5 3 . 2 11 5 . . . . . . . . . . . . Impact 93 | . . . . . . 61 . 6 . . . . 5 3 . 2 11 5 . . . . . . . . . . . . Slashing . | . . . . . . . . . . . . . . . . . . . . . . . . . . . . . . . Piercing . | . . . . . . . . . . . . . . . . . . . . . . . . . . . . . . . Sneak Attacks 2 | . . . . . . . . 1 . . . . . . . . 1 . . . . . . . . . . . . . Combat Hostiles . | . . . . . . . . . . . . . . . . . . . . . . . . . . . . . . . Follow-up Attacks . | . . . . . . . . . . . . . . . . . . . . . . . . . . . . . . . Damage Inflicted 117001 | 85 1247 167 . 288 2916 3934 3116 1711 664 2242 . 1922 9605 4436 . 2773 844 1640 2516 347 3199 202 6093 133 5200 21434 2536 9286 27026 1439 Guns 10273 | 85 177 . . . 1532 721 . . . . . . 726 688 . 1160 424 314 160 233 1554 130 1134 . 696 342 32 . 165 . Cannons 68136 | . 1070 158 . 230 556 2220 2800 1601 216 671 . 895 5725 1162 . 230 . . . 43 42 . 2928 105 4504 9253 1636 8607 22045 1439 Explosions 38004 | . . . . . 793 993 316 . 448 1571 . 1027 3149 2586 . 1383 321 1109 2356 71 1603 72 2031 . . 11839 868 652 4816 . Melee 426 | . . . . . . . . 110 . . . . . . . . 99 217 . . . . . . . . . . . . Ramming 162 | . . 9 . 58 35 . . . . . . . 5 . . . . . . . . . . 28 . . . 27 . . Kinetic 23143 | 34 1145 158 . 230 531 2088 2730 953 216 671 . 895 3678 422 . 986 424 314 160 235 42 31 1652 . 2311 1182 84 1181 790 . Thermal 65291 | 51 102 . . . 1581 753 70 69 . . . . 2982 1428 . 404 . . . 71 783 72 2006 . 2889 20161 1584 7426 21420 1439 Explosive 23942 | . . . . . 302 961 316 . 448 1571 . 1027 2565 2586 . 1383 321 1109 2356 . 820 . 1750 . . 91 868 652 4816 . Electromagnetic 1793 | . . . . . 467 132 . 579 . . . . 375 . . . . . . . . . 135 105 . . . . . . Impact 426 | . . . . . . . . 110 . . . . . . . . 99 217 . . . . . . . . . . . . Slashing . | . . . . . . . . . . . . . . . . . . . . . . . . . . . . . . . Piercing . | . . . . . . . . . . . . . . . . . . . . . . . . . . . . . . . Entropic 2244 | . . . . . . . . . . . . . . . . . . . . 41 1554 99 550 . . . . . . . Highest Corruption 38 | . . . . . 3 5 10 . . . . . 9 8 . . . . . . 14 . 3 . . 34 5 6 29 38 Average Corruption 5 | . . . . . 2 3 5 . . . . . 6 2 . . . . . . 11 . 2 . . 8 4 5 5 31 Corruption Purged 7 | . . . . . . . . . . . . . 1 6 . . . . . . . . . . . . . . . . Corruption Blocked 94 | . . . . . . . . . . . . . . . . . . . . 2 . . . . . . 72 20 . . Effects 492 | . . . . . 36 62 28 . . . . . 85 39 . . . . . . . . 49 . . 60 14 48 40 31 Message Errors 114 | . . . . . 11 14 3 . . . . . 25 10 . . . . . . . . 10 . . 17 3 10 2 9 Matter Fused 106 | . . . . . 5 17 4 . . . . . 17 14 . . . . . . . . 15 . . 10 1 11 7 5 Heat Flow Errors 47 | . . . . . 6 5 4 . . . . . 10 3 . . . . . . . . 3 . . 4 3 5 3 1 Energy Discharges 54 | . . . . . 5 5 4 . . . . . 8 5 . . . . . . . . 9 . . 5 3 3 5 2 Parts Rejected 5 | . . . . . . . . . . . . . 1 . . . . . . . . . . . . 1 . 1 1 1 Data Loss (minor) 63 | . . . . . 5 12 7 . . . . . 9 3 . . . . . . . . 5 . . 8 1 8 2 3 Data Loss (major) 16 | . . . . . 2 2 2 . . . . . 4 1 . . . . . . . . 2 . . . . 3 . . Misfires 28 | . . . . . 2 4 2 . . . . . 7 1 . . . . . . . . 2 . . 3 1 3 2 1 Alerts 11 | . . . . . . 3 2 . . . . . 2 2 . . . . . . . . 1 . . . . . 1 . Misdirections 9 | . . . . . . . . . . . . . . . . . . . . . . . . . . 1 . . 2 6 Weapon Failures 39 | . . . . . . . . . . . . . 2 . . . . . . . . . 2 . . 11 2 4 15 3 Overload Shots 1 | . . . . . . . . . . . . . . 1 . . . . . . . . . . . . . . . . Effects 1 | . . . . . . . . . . . . . . 1 . . . . . . . . . . . . . . . . Short Circuit 1 | . . . . . . . . . . . . . . 1 . . . . . . . . . . . . . . . . Overflow Damage 4769 | . 5 . . 7 2 96 187 274 20 30 . 178 817 127 . 16 11 128 26 . 75 . 41 . 10 1273 97 263 964 122 Projectiles 2692 | . 5 . . 7 . 94 186 204 20 6 . 119 603 58 . . . . . . . . . . 10 222 27 263 746 122 Explosions 1901 | . . . . . 2 2 1 . . 24 . 59 214 69 . 16 11 22 26 . 75 . 41 . . 1051 70 . 218 . Melee 176 | . . . . . . . . 70 . . . . . . . . . 106 . . . . . . . . . . . . Knockbacks 138 | . 16 2 . 3 5 22 14 4 1 2 . 6 18 7 . . 1 . . 1 1 . . . . 10 . 13 12 . Impact 3 | . . . . 1 . . . 1 . . . . . . . . 1 . . . . . . . . . . . . . Kinetic 126 | . 15 2 . 2 5 19 12 3 1 2 . 6 18 7 . . . . . 1 1 . . . . 10 . 12 10 . Secondary 9 | . 1 . . . . 3 2 . . . . . . . . . . . . . . . . . . . . 1 2 . Self-Inflicted Damage 2222 | . . . . . 14 105 113 . . 72 . 52 284 225 . . . . . . 126 . 71 . . 920 . . 240 . Shots 38 | . . . . . 2 4 1 . . 2 . 2 5 9 . . . . . . 2 . 7 . . 1 . . 3 . Rammed 13 | . . 2 . 6 1 . . . . . . . 1 . . . . . . . . . . 2 . . . 1 . . Targets Rammed 14 | . . 2 . 6 2 . . . . . . . 1 . . . . . . . . . . 2 . . . 1 . . Kicked . | . . . . . . . . . . . . . . . . . . . . . . . . . . . . . . . Crushed 1 | . . . . . 1 . . . . . . . . . . . . . . . . . . . . . . . . . Highest Temperature 395 | 38 153 72 . 171 320 360 201 86 12 6 . 12 395 180 . 231 10 79 12 336 332 52 324 . 246 312 141 141 138 138 Average Temperature 89 | 17 43 25 . 72 91 113 43 36 5 6 . 4 99 90 . 39 7 30 6 81 115 26 63 . 98 89 100 107 116 39 Received Heat Transfer 6744 | . 276 6 . 36 576 447 351 129 42 135 . 62 1019 412 . 273 67 103 97 . 245 . 266 9 28 449 63 361 1193 99 Effects 10 | . . . . . . 3 . . . . . . 3 . . 3 . . . . . . 1 . . . . . . . Shutdowns 1 | . . . . . . . . . . . . . 1 . . . . . . . . . . . . . . . . . Energy Bleed 3 | . . . . . . 1 . . . . . . 2 . . . . . . . . . . . . . . . . . Interference 5 | . . . . . . 2 . . . . . . . . . 3 . . . . . . . . . . . . . . Matter Decay 1 | . . . . . . . . . . . . . . . . . . . . . . . 1 . . . . . . . Siege Activations 88 | . . . . . . . . . . . . . . . . 2 . 1 . 2 2 . 12 . 16 21 3 14 15 . Total Turns 2187 | . . . . . . . . . . . . . . . . 39 . 2 . 54 28 . 233 . 405 520 41 301 564 . Longest Duration 140 | . . . . . . . . . . . . . . . . 38 . 2 . 29 20 . 53 . 92 140 21 78 125 . Robots Corrupted 4 | . . . . . . 1 . 1 . . . . 1 . . . . . . . . . . 1 . . . . . . Combat Hostiles 3 | . . . . . . 1 . . . . . . 1 . . . . . . . . . . 1 . . . . . . Parts Fried 15 | . . . . . 3 1 . 4 . . . . 5 . . . . . . . . . . . . . . 2 . . Impact Corruptions 6 | . . . . . . . 1 3 . . . . . . . . . 1 . . . . . . . . . . 1 . Robots Melted 48 | . . . . . . . . . . . . . . . . . . . . . . . 1 . 4 15 1 7 20 . Combat Hostiles 46 | . . . . . . . . . . . . . . . . . . . . . . . 1 . 4 15 1 6 19 . Parts Melted 169 | 1 2 . . . . . . . . . . . 6 4 . . 1 . . . . . 5 . 10 34 3 20 79 4 Heat Transferred 49350 | 148 444 . . . 1310 635 111 111 . . . . 3748 2266 . 757 . . . 25 475 50 1802 . 2757 7626 1369 6771 18057 888 Parts Sabotaged 9 | . . . . . . . . . . . . . . . . . . . . . . . . . . . . . 8 1 Parts Stolen . | . . . . . . . . . . . . . . . . . . . . . . . . . . . . . . . Parts Stripped . | . . . . . . . . . . . . . . . . . . . . . . . . . . . . . . . Power Chain Reactions 4 | . . . . . 1 1 . . . . . . 2 . . . . . . . . . . . . . . . . . Missiles Intercepted . | . . . . . . . . . . . . . . . . . . . . . . . . . . . . . . . Alert | -11 -10 -10 -10 -9 -8 -8 -8 -7 -7 -7 -7 -6 -6 -6 -5 -5 -5 -5 -5 -5 -4 -4 -4 -3 -3 -3 -2 -2 -1 -1 ------- Run | Scr Mat Min Exi Min Mat Gar Mat Fac Low Low Dat Pro Fac Gar Fac Gar Fac Upp Upp War Pro Fac Gar Res Qua Sec Res Tes Acc Com Peak Influence 4420 | 10 190 56 . 75 600 2203 1073 448 . . . . 999 2206 1165 1941 1298 . . . . 60 1958 1170 919 2090 1192 1947 4420 2994 Initial 2773 | . 6 . . . . 369 1073 402 . . . . . 528 1157 815 1018 . . . . . 51 1101 657 499 1175 556 1168 2773 Average 769 | 7 43 5 . 11 233 1180 757 294 . . . . 362 1321 1159 1382 1126 . . . . 3 1034 1128 776 883 960 1203 2235 2723 Maximum Alert Level 5 | . . . . . 2 5 3 2 . . . . 3 5 4 5 4 . . . . . 5 4 3 5 4 5 5 5 Low Security (%) 26 | 100 100 100 . 100 46 . . 8 . . . . 46 . . . . . . . . 100 4 . . . . . . . Level 1 8 | . . . . . 35 2 . 67 . . . . 19 . . . . . . . . . 9 . . . . . . . Level 2 9 | . . . . . 17 10 41 24 . . . . 5 12 . . . . . . . . 12 . 15 15 1 19 . . Level 3 29 | . . . . . . 33 58 . . . . . 28 17 . 38 33 . . . . . 19 . 84 70 75 32 . . Level 4 16 | . . . . . . 30 . . . . . . . 43 100 25 66 . . . . . 37 100 . 12 23 20 44 . Level 5 8 | . . . . . . 22 . . . . . . . 25 . 35 . . . . . . 16 . . . . 22 9 100 High Security 1 | . . . . . . . . . . . . . . . . . . . . . . . . . . 1 . 5 45 . Max Security . | . . . . . . . . . . . . . . . . . . . . . . . . . . . . . . . Squads Dispatched 152 | . 3 1 . . 6 . 3 6 . . . 1 20 . . . 7 . 1 . . 1 . 4 2 22 5 26 37 7 Investigation 15 | . 1 1 . . 3 . . 2 . . . . 2 . . . 1 . . . . 1 . 1 2 . . 1 . . Extermination 24 | . . . . . . . . 3 . . . . 6 . . . 1 . . . . . . . . 7 . 4 2 1 Reinforcement 39 | . 2 . . . 3 . 1 1 . . . . 5 . . . 3 . . . . . . 2 . 6 1 8 5 2 Assault 55 | . . . . . . . 2 . . . . 1 4 . . . 1 . 1 . . . . 1 . 7 . 7 27 4 Garrison 10 | . . . . . . . . . . . . . 3 . . . 1 . . . . . . . . . . 6 . . Intercept 9 | . . . . . . . . . . . . . . . . . . . . . . . . . . 2 4 . 3 . Searches Triggered . | . . . . . . . . . . . . . . . . . . . . . . . . . . . . . . . Data Miner Redirects 22 | . . . . . . . . . . . . . 3 . . . 2 . . . . . . 1 . 4 . 5 2 5 Construction Impeded 11 | . . . . . 1 . . . . . . . 3 . . . 2 . . . . . . . . 2 . 1 2 . Haulers Reinforced 5 | . . . . . . . . 1 . . . . 1 . . . 1 . . . . . . . . . 1 1 . . Active Scanning Responses . | . . . . . . . . . . . . . . . . . . . . . . . . . . . . . . . Cargo Convoy Interrupts . | . . . . . . . . . . . . . . . . . . . . . . . . . . . . . . . Stealth | -11 -10 -10 -10 -9 -8 -8 -8 -7 -7 -7 -7 -6 -6 -6 -5 -5 -5 -5 -5 -5 -4 -4 -4 -3 -3 -3 -2 -2 -1 -1 --------- Run | Scr Mat Min Exi Min Mat Gar Mat Fac Low Low Dat Pro Fac Gar Fac Gar Fac Upp Upp War Pro Fac Gar Res Qua Sec Res Tes Acc Com Distress Signals 26 | . 1 . . . 5 . 2 . . . . . . . . . 2 . . . . . . . . 3 7 1 3 2 Communications Jammed . | . . . . . . . . . . . . . . . . . . . . . . . . . . . . . . . Distress Signals . | . . . . . . . . . . . . . . . . . . . . . . . . . . . . . . . Times Spotted 922 | . 26 2 . 3 51 37 30 13 7 26 . 17 72 30 . 37 27 10 19 14 14 2 37 3 16 77 26 56 222 48 Peak Tracking Total 27 | . 5 2 . 3 8 4 7 2 3 6 . 5 8 5 . 8 4 7 8 17 7 2 6 4 3 9 9 11 27 20 Tactical Retreats 51 | . 1 . . . 4 1 . . . . . . 4 . . 3 . . . . . . 12 . 1 . . 4 15 6 Traps | -11 -10 -10 -10 -9 -8 -8 -8 -7 -7 -7 -7 -6 -6 -6 -5 -5 -5 -5 -5 -5 -4 -4 -4 -3 -3 -3 -2 -2 -1 -1 ------- Run | Scr Mat Min Exi Min Mat Gar Mat Fac Low Low Dat Pro Fac Gar Fac Gar Fac Upp Upp War Pro Fac Gar Res Qua Sec Res Tes Acc Com Traps Triggered 33 | . 1 . . . 2 6 . 1 . . . . . 13 . 2 . . . . . . 3 . 1 . . 2 . 2 Indirectly . | . . . . . . . . . . . . . . . . . . . . . . . . . . . . . . . Trap Hack Attempts . | . . . . . . . . . . . . . . . . . . . . . . . . . . . . . . . Triggered . | . . . . . . . . . . . . . . . . . . . . . . . . . . . . . . . Disarmed . | . . . . . . . . . . . . . . . . . . . . . . . . . . . . . . . Reprogrammed 6 | . 6 . . . . . . . . . . . . . . . . . . . . . . . . . . . . . Reused 1 | . 1 . . . . . . . . . . . . . . . . . . . . . . . . . . . . . Traps Extracted . | . . . . . . . . . . . . . . . . . . . . . . . . . . . . . . . Installed . | . . . . . . . . . . . . . . . . . . . . . . . . . . . . . . . Triggered 10 | . 1 . . . . . . . . . . 1 . . . . . . . 6 . . . . . . . 2 . . Exploded 1 | . . . . . . . . . . . . . . . . 1 . . . . . . . . . . . . . . Machines | -11 -10 -10 -10 -9 -8 -8 -8 -7 -7 -7 -7 -6 -6 -6 -5 -5 -5 -5 -5 -5 -4 -4 -4 -3 -3 -3 -2 -2 -1 -1 ---------- Run | Scr Mat Min Exi Min Mat Gar Mat Fac Low Low Dat Pro Fac Gar Fac Gar Fac Upp Upp War Pro Fac Gar Res Qua Sec Res Tes Acc Com Machines Disabled 86 | . 1 . . . . . 2 2 . 1 . . 16 6 . 4 2 1 1 1 . . 4 . 10 22 . 10 2 1 Max in Single Turn 9 | . 1 . . . . . 2 1 . 1 . . 4 1 . 2 1 1 1 1 . . 1 . 1 9 . 1 1 1 Garrison Access 5 | . . . . . . . . . . . . . 1 . . . 2 . . . . . . . . . 1 1 . . Garrison Relay 1 | . . . . . . . . . . . . . . 1 . . . . . . . . . . . . . . . . Phase Generator 1 | . . . . . . . . . . . . . . . . 1 . . . . . . . . . . . . . . Energy Cycler 1 | . . . . . . . . . . . . . . . . . . . . . . . . . . . . . 1 . Machines Sabotaged . | . . . . . . . . . . . . . . . . . . . . . . . . . . . . . . . Garrisons Compromised . | . . . . . . . . . . . . . . . . . . . . . . . . . . . . . . . Overloaded Fab Kills . | . . . . . . . . . . . . . . . . . . . . . . . . . . . . . . . Hacking | -11 -10 -10 -10 -9 -8 -8 -8 -7 -7 -7 -7 -6 -6 -6 -5 -5 -5 -5 -5 -5 -4 -4 -4 -3 -3 -3 -2 -2 -1 -1 --------- Run | Scr Mat Min Exi Min Mat Gar Mat Fac Low Low Dat Pro Fac Gar Fac Gar Fac Upp Upp War Pro Fac Gar Res Qua Sec Res Tes Acc Com Machines Accessed 119 | . 8 2 1 . 12 2 4 10 3 2 4 . 14 . 2 . 8 . . 8 . 5 1 3 16 5 1 3 3 2 Terminals 66 | . 6 1 . . 8 2 3 3 . 1 . . 7 . 1 . 4 . . . . 2 1 3 12 5 1 3 1 2 Fabricators 8 | . . . . . . . . 4 . . . . 2 . . . . . . . . 1 . . . . . . 1 . Repair Stations 8 | . 1 . . . 1 . 1 . . . . . 2 . . . 1 . . . . . . . 2 . . . . . Recycling Units 6 | . 1 . . . 2 . . 1 . . . . 1 . . . . . . . . 1 . . . . . . . . Scanalyzers 5 | . . . . . . . . 2 . . . . . . . . 1 . . . . . . . 2 . . . . . Garrison Access 8 | . . . . . 1 . . . . . . . 2 . 1 . 2 . . . . 1 . . . . . . 1 . Total Hacks 321 | . 31 3 1 . 41 3 20 31 6 6 29 . 33 . 5 . 26 . . 12 . 12 2 7 32 6 3 6 3 3 Successful 167 | . 12 2 1 . 18 2 11 20 6 6 29 . 13 . 4 . 11 . . 12 . 2 . 1 15 1 1 . . . Failed 151 | . 18 . . . 22 1 9 11 . . . . 20 . 1 . 15 . . . . 10 2 6 17 5 2 6 3 3 Catastrophic 26 | . 2 . . . 2 . . 2 . . . . 6 . . . . . . . . 2 . 1 6 2 . 1 . 2 Database Lockouts 3 | . 1 1 . . 1 . . . . . . . . . . . . . . . . . . . . . . . . . Manual 74 | . 17 2 . . 16 . 9 12 . . . . 5 . . . . . . 1 . 5 . 3 1 1 1 . . 1 Terminals 178 | . 25 2 . . 23 3 16 9 . 5 . . 19 . 4 . 17 . . . . 4 2 7 23 6 3 6 1 3 Fabricators 19 | . . . . . . . . 12 . . . . 4 . . . . . . . . 2 . . . . . . 1 . Repair Stations 29 | . 2 . . . 10 . 4 . . . . . 6 . . . 3 . . . . . . . 4 . . . . . Recycling Units 19 | . 4 . . . 7 . . 2 . . . . 2 . . . . . . . . 4 . . . . . . . . Scanalyzers 15 | . . . . . . . . 8 . . . . . . . . 2 . . . . . . . 5 . . . . . Garrison Access 11 | . . . . . 1 . . . . . . . 2 . 1 . 4 . . . . 2 . . . . . . 1 . Terminal Hacks 109 | . 10 2 1 . 5 2 7 3 6 6 29 . 4 . 3 . 6 . . 12 . . . 1 10 1 1 . . . Record 34 | . . . 1 . . . . . 4 5 11 . . . . . . . . 11 . . . . 2 . . . . . Part Schematic 13 | . . . . . . . . 1 . . 11 . . . . . . . . . . . . . 1 . . . . . Robot Schematic 4 | . . . . . . . . . . . 4 . . . . . . . . . . . . . . . . . . . Robot Analysis 9 | . 5 . . . 1 . 2 . . . . . . . . . . . . . . . . . 1 . . . . . Prototype ID Bank 11 | . 2 1 . . 2 . . . . . 3 . . . . . 1 . . . . . . . 1 . 1 . . . Open Door 7 | . . 1 . . . . . . 2 1 . . . . . . . . . 1 . . . . 1 1 . . . . Level Access Points 2 | . . . . . . . 1 . . . . . . . . . . . . . . . . . 1 . . . . . Branch Access Points 2 | . . . . . . . . . . . . . . . . . 1 . . . . . . 1 . . . . . . Emergency Access Points 2 | . . . . . . 1 . . . . . . . . . . 1 . . . . . . . . . . . . . Garrison Index 1 | . . . . . . . . . . . . . 1 . . . . . . . . . . . . . . . . . Alert Level 4 | . 1 . . . . . . 1 . . . . . . 1 . . . . . . . . . 1 . . . . . Unreport Threat 8 | . . . . . . . 3 1 . . . . 3 . . . 1 . . . . . . . . . . . . . Locate Traps 4 | . 1 . . . 1 . . . . . . . . . 1 . 1 . . . . . . . . . . . . . Reprogram Traps 1 | . 1 . . . . . . . . . . . . . . . . . . . . . . . . . . . . . Transport Status 1 | . . . . . . . . . . . . . . . 1 . . . . . . . . . . . . . . . Hauler Manifests 3 | . . . . . 1 . 1 . . . . . . . . . 1 . . . . . . . . . . . . . Zone Layout 2 | . . . . . . . . . . . . . . . . . . . . . . . . . 2 . . . . . Patrol Navigation 1 | . . . . . . 1 . . . . . . . . . . . . . . . . . . . . . . . . Fabricator Hacks 7 | . . . . . . . . 5 . . . . 1 . . . . . . . . 1 . . . . . . . . Network Status 2 | . . . . . . . . 1 . . . . . . . . . . . . . 1 . . . . . . . . Load Schematic 3 | . . . . . . . . 2 . . . . 1 . . . . . . . . . . . . . . . . . Build 2 | . . . . . . . . 2 . . . . . . . . . . . . . . . . . . . . . . Repair Station Hacks 20 | . 2 . . . 8 . 3 . . . . . 4 . . . 2 . . . . . . . 1 . . . . . Scan Component 11 | . 1 . . . 4 . 2 . . . . . 2 . . . 1 . . . . . . . 1 . . . . . Repair 9 | . 1 . . . 4 . 1 . . . . . 2 . . . 1 . . . . . . . . . . . . . Recycling Unit Hacks 3 | . . . . . 2 . . . . . . . 1 . . . . . . . . . . . . . . . . . Retrieve Components 3 | . . . . . 2 . . . . . . . 1 . . . . . . . . . . . . . . . . . Scanalyzer 13 | . . . . . . . . 8 . . . . . . . . 1 . . . . . . . 4 . . . . . Insert Component 7 | . . . . . . . . 4 . . . . . . . . 1 . . . . . . . 2 . . . . . Analyze 6 | . . . . . . . . 4 . . . . . . . . . . . . . . . . 2 . . . . . Garrison Access Hacks 7 | . . . . . 1 . . . . . . . 2 . 1 . 2 . . . . 1 . . . . . . . . Unlock Access 5 | . . . . . 1 . . . . . . . 2 . 1 . . . . . . 1 . . . . . . . . Seal Access 2 | . . . . . . . . . . . . . . . . . 2 . . . . . . . . . . . . . Unauthorized Hacks 8 | . . . . . 2 . 1 4 . . . . 1 . . . . . . . . . . . . . . . . . Terminals 3 | . . . . . . . 1 1 . . . . 1 . . . . . . . . . . . . . . . . . Botnet 3 | . . . . . . . 1 1 . . . . 1 . . . . . . . . . . . . . . . . . Fabricators 2 | . . . . . . . . 2 . . . . . . . . . . . . . . . . . . . . . . Fabnet 2 | . . . . . . . . 2 . . . . . . . . . . . . . . . . . . . . . . Repair Stations . | . . . . . . . . . . . . . . . . . . . . . . . . . . . . . . . Recycling Units 3 | . . . . . 2 . . 1 . . . . . . . . . . . . . . . . . . . . . . Reject 1 | . . . . . 1 . . . . . . . . . . . . . . . . . . . . . . . . . Mask 2 | . . . . . 1 . . 1 . . . . . . . . . . . . . . . . . . . . . . Scanalyzers . | . . . . . . . . . . . . . . . . . . . . . . . . . . . . . . . Garrison Access . | . . . . . . . . . . . . . . . . . . . . . . . . . . . . . . . Data Cores Recovered . | . . . . . . . . . . . . . . . . . . . . . . . . . . . . . . . Used . | . . . . . . . . . . . . . . . . . . . . . . . . . . . . . . . Hacking Detections 91 | . 7 . . . 11 1 4 9 . 1 . . 11 . 2 . 7 . . . . 5 1 3 16 4 1 3 3 2 Full Trace Events 11 | . 1 . . . 2 . . 2 . . . . 2 . . . 1 . . . . 1 . 1 1 . . . . . Feedback Events 2 | . . . . . . . . . . . . . 1 . . . . . . . . 1 . . . . . . . . Corruption 2 | . . . . . . . . . . . . . 1 . . . . . . . . 1 . . . . . . . . Feedback Blocked . | . . . . . . . . . . . . . . . . . . . . . . . . . . . . . . . Robot Schematics Acquired 10 | . . . . . . . . . . . 4 . . . . . . . . . . . . . 3 . . 3 . . Robots Built . | . . . . . . . . . . . . . . . . . . . . . . . . . . . . . . . Authchips . | . . . . . . . . . . . . . . . . . . . . . . . . . . . . . . . Time . | . . . . . . . . . . . . . . . . . . . . . . . . . . . . . . . Total Robot Build Rating . | . . . . . . . . . . . . . . . . . . . . . . . . . . . . . . . Part Schematics Acquired 27 | . . . . . . . . 4 . . 11 . . . . . . . . . . . . . 6 2 . 4 . . Parts Built 2 | . . . . . . . . 2 . . . . . . . . . . . . . . . . . . . . . . Authchips . | . . . . . . . . . . . . . . . . . . . . . . . . . . . . . . . Time 168 | . . . . . . . . 168 . . . . . . . . . . . . . . . . . . . . . . Total Part Build Rating 8 | . . . . . . . . 8 . . . . . . . . . . . . . . . . . . . . . . Parts Repaired 9 | . 1 . . . 4 . 1 . . . . . 2 . . . 1 . . . . . . . . . . . . . Time 283 | . 32 . . . 116 . 22 . . . . . 57 . . . 56 . . . . . . . . . . . . . Parts Recycled . | . . . . . . . . . . . . . . . . . . . . . . . . . . . . . . . Recycled Matter . | . . . . . . . . . . . . . . . . . . . . . . . . . . . . . . . Retrieved Matter . | . . . . . . . . . . . . . . . . . . . . . . . . . . . . . . . Retrieved Components 11 | . . . . . 10 . . . . . . . 1 . . . . . . . . . . . . . . . . . Parts Scanalyzed 6 | . . . . . . . . 3 . . . . . . . . 1 . . . . . . . 2 . . . . . Part Schematics Acquired 5 | . . . . . . . . 3 . . . . . . . . . . . . . . . . 2 . . . . . Parts Damaged . | . . . . . . . . . . . . . . . . . . . . . . . . . . . . . . . Bothacking | -11 -10 -10 -10 -9 -8 -8 -8 -7 -7 -7 -7 -6 -6 -6 -5 -5 -5 -5 -5 -5 -4 -4 -4 -3 -3 -3 -2 -2 -1 -1 ------------ Run | Scr Mat Min Exi Min Mat Gar Mat Fac Low Low Dat Pro Fac Gar Fac Gar Fac Upp Upp War Pro Fac Gar Res Qua Sec Res Tes Acc Com Used RIF Installer . | . . . . . . . . . . . . . . . . . . . . . . . . . . . . . . . Robots Hacked 8 | . . . . . . . . . . . . 1 . 3 . . . 1 . 3 . . . . . . . . . . Non-combat . | . . . . . . . . . . . . . . . . . . . . . . . . . . . . . . . Combat 8 | . . . . . . . . . . . . 1 . 3 . . . 1 . 3 . . . . . . . . . . Robot Hacks Applied . | . . . . . . . . . . . . . . . . . . . . . . . . . . . . . . . Relay Couplers Released 17 | . . . . . . 4 . . . . . . 2 4 . . . . . . . . . . . . 5 2 . . Machine Destruction 10 | . . . . . . . . . . . . . 2 4 . . . . . . . . . . . . 2 2 . . Programmers 7 | . . . . . . 4 . . . . . . . . . . . . . . . . . . . . 3 . . . Fabnet Peak Effective % 6 | . . . . . . . . . . . . 6 6 6 2 2 2 2 2 2 . . . . . . . . . . Autooverrided 8 | . . . . . . . . . . . . 1 . 3 . . . 1 . 3 . . . . . . . . . . Robots Rewired 20 | . . . . . . 3 . . . . . 1 . 2 . 3 . 2 1 5 . . . . . . . 3 . . Allies Hacked . | . . . . . . . . . . . . . . . . . . . . . . . . . . . . . . . Hacks Repelled . | . . . . . . . . . . . . . . . . . . . . . . . . . . . . . . . Allies | -11 -10 -10 -10 -9 -8 -8 -8 -7 -7 -7 -7 -6 -6 -6 -5 -5 -5 -5 -5 -5 -4 -4 -4 -3 -3 -3 -2 -2 -1 -1 -------- Run | Scr Mat Min Exi Min Mat Gar Mat Fac Low Low Dat Pro Fac Gar Fac Gar Fac Upp Upp War Pro Fac Gar Res Qua Sec Res Tes Acc Com Total Allies 80 | . . 2 . 1 . 3 . 3 . . . 3 . 7 . 5 . 3 1 8 . . . . . . . 3 13 28 Largest Group 13 | . . 2 2 1 . 3 1 3 . . . 1 1 4 3 4 5 3 3 7 5 1 1 . . . . 2 7 13 Highest-Rated Group 320 | . . 42 42 31 . 76 20 93 . . . 96 29 274 225 225 271 118 118 320 219 65 65 . . . . 153 101 183 Highest-Rated Ally 153 | . . 31 31 31 . 31 20 31 . . . 96 29 95 95 95 68 60 60 65 65 65 65 . . . . 153 15 15 Warlord Squad Rendezvous 8 | . . . . . . . . . . . . . 3 . . . 5 . . . . . . . . . . . . . Dakka 1 | . . . . . . . . . . . . . . . . . 1 . . . . . . . . . . . . . Infantry 1 | . . . . . . . . . . . . . 1 . . . . . . . . . . . . . . . . . Muscle 2 | . . . . . . . . . . . . . 1 . . . 1 . . . . . . . . . . . . . Ranger 2 | . . . . . . . . . . . . . 1 . . . 1 . . . . . . . . . . . . . Pyro 2 | . . . . . . . . . . . . . . . . . 2 . . . . . . . . . . . . . Total Orders 27 | . . . . . . . . . . . . . . . . . . . . . . . . . . . 6 8 11 2 STAY 3 | . . . . . . . . . . . . . . . . . . . . . . . . . . . . . 3 . EXPLORE 23 | . . . . . . . . . . . . . . . . . . . . . . . . . . . 6 7 8 2 RETURN 1 | . . . . . . . . . . . . . . . . . . . . . . . . . . . . 1 . . Ally Attacks 324 | . . 3 . . . 10 . 18 . . . 4 4 12 . 12 15 8 20 53 1 . . . . . . 10 30 124 Total Damage 9822 | . . 22 . . . 198 . 290 . . . 110 58 235 . 879 1207 727 533 1973 32 . . . . . . 930 625 2003 Kills 47 | . . . . . . 3 . . . . . . . 3 . 6 6 2 6 9 . . . . . . . 2 2 8 Allies Corrupted 5 | . . . . . . . . . . . . . . . . . 1 . . . . . . . . . . . 3 1 Allies Melted 2 | . . . . . . . . . . . . . . . . . . . . . . . . . . . 2 . . . Intel | -11 -10 -10 -10 -9 -8 -8 -8 -7 -7 -7 -7 -6 -6 -6 -5 -5 -5 -5 -5 -5 -4 -4 -4 -3 -3 -3 -2 -2 -1 -1 ------- Run | Scr Mat Min Exi Min Mat Gar Mat Fac Low Low Dat Pro Fac Gar Fac Gar Fac Upp Upp War Pro Fac Gar Res Qua Sec Res Tes Acc Com Robot Analysis Total 9 | . 5 . . . 1 . 2 . . . . . . . . . . . . . . . . . 1 . . . . . Derelict Logs Recovered 15 | . . 3 . 2 . . . . 2 2 . 2 . . . . . 1 2 . 1 . . . . . . . . . Drone Launches 41 | . . . . . . . . . . . . . . . . . . . . . . . . . . . 19 8 11 3 Drone Recoveries 19 | . . . . . . . . . . . . . . . . . . . . . . . . . . . 7 7 3 2 Exploration | -11 -10 -10 -10 -9 -8 -8 -8 -7 -7 -7 -7 -6 -6 -6 -5 -5 -5 -5 -5 -5 -4 -4 -4 -3 -3 -3 -2 -2 -1 -1 ------------- Run | Scr Mat Min Exi Min Mat Gar Mat Fac Low Low Dat Pro Fac Gar Fac Gar Fac Upp Upp War Pro Fac Gar Res Qua Sec Res Tes Acc Com Turns Passed 51292 | 29 2246 2329 432 2063 2824 3113 940 1655 2260 1844 177 1613 3343 2706 70 858 1220 1837 1578 1576 1517 256 2863 318 4310 2179 1724 1548 1438 426 Spaces Moved 20090 | 11 742 633 136 629 870 818 272 567 976 768 77 610 1117 1001 42 349 634 1097 942 767 902 117 975 162 1793 799 859 559 395 471 Core 231 | . . . . . . . . . . . . . . . . . . . . . . . . . . . . . 80 151 Treads 19241 | . 519 633 136 629 870 818 231 567 976 768 77 610 1117 1001 42 349 634 1097 942 767 902 117 975 162 1793 789 859 559 302 . Legs 234 | 11 223 . . . . . . . . . . . . . . . . . . . . . . . . . . . . . Wheels 41 | . . . . . . . 41 . . . . . . . . . . . . . . . . . . . . . . . Hover 316 | . . . . . . . . . . . . . . . . . . . . . . . . . . . . . . 316 Flight . | . . . . . . . . . . . . . . . . . . . . . . . . . . . . . . . Fastest Speed 50 | 120 120 320 320 320 240 240 205 225 228 228 232 232 225 225 154 151 151 155 155 155 158 165 165 152 148 146 155 146 50 50 Average Speed 207 | 120 267 320 320 320 250 318 256 225 228 230 232 232 230 228 155 159 153 155 155 166 158 203 236 159 192 153 164 149 156 57 Slowest Speed 545 | 120 320 320 320 320 320 400 545 228 228 232 232 232 232 232 230 234 155 155 155 232 165 245 245 240 240 305 238 155 259 140 Overloaded Moves . | . . . . . . . . . . . . . . . . . . . . . . . . . . . . . . . Propulsion Burnouts . | . . . . . . . . . . . . . . . . . . . . . . . . . . . . . . . Robots Hopped 5 | . . . . . . . . . . . . . . . . . . . . . . . . . . . . . . 5 Cave-ins Triggered 5 | . . . . . . . . . . . . . . . . . . . . . . . . . . 2 1 . 2 . Teleports 2 | . . . . . . . . . . . . . . . . . . . . . . . . . . 1 . . 1 . Spacefolds 11 | . . . . . . . . . . . . . . . . . . . . . . . . . . 4 . . 5 2 Exploration Rate (%) 61 | 2 98 98 50 97 88 92 25 17 98 84 68 73 30 90 2 47 25 99 97 90 97 6 74 9 97 51 72 86 23 28 Regions Visited 30 Branch Regions 15 Pre-discovered Areas 7 | . . 1 1 1 . . . . 2 . 1 . . . . . . . 1 . . . . . . . . . . . Known Exits Taken 14 | . . . 1 . 1 . 1 . . . . 1 1 . 1 . 1 1 . . . 1 . 1 . 1 1 1 1 . Unknown Exits Taken 12 | 1 1 1 . 1 . . . 1 1 1 1 . . . . . . . 1 1 1 . . . 1 . . . . . Scrap Searched 19 | . . 2 . 1 . . . . 4 2 . 2 . . . . . 3 3 . 2 . . . . . . . . . Spaces Dug 315 | . . . . . 8 15 . 4 . . . 34 6 11 . . 33 3 . 5 3 . 45 8 26 20 21 47 11 15 Terrain Destroyed 2879 | . . . . . 42 126 51 17 30 120 . 88 255 240 . 163 38 66 115 7 141 5 125 8 49 641 71 147 305 29 Melee 37 | . . . . . . 14 . 4 . . . . 4 2 . . 10 3 . . . . . . . . . . . . Projectile 656 | . . . . . . 17 8 13 3 7 . 8 49 4 . 1 . . . 6 47 2 57 8 34 60 38 135 130 29 AOE 2178 | . . . . . 42 95 43 . 27 113 . 80 202 234 . 156 28 62 115 1 94 3 68 . 14 581 33 12 175 . Terrain Rammed . | . . . . . . . . . . . . . . . . . . . . . . . . . . . . . . . Walls Destroyed . | . . . . . . . . . . . . . . . . . . . . . . . . . . . . . . . Machines Disabled . | . . . . . . . . . . . . . . . . . . . . . . . . . . . . . . . Actions | -11 -10 -10 -10 -9 -8 -8 -8 -7 -7 -7 -7 -6 -6 -6 -5 -5 -5 -5 -5 -5 -4 -4 -4 -3 -3 -3 -2 -2 -1 -1 --------- Run | Scr Mat Min Exi Min Mat Gar Mat Fac Low Low Dat Pro Fac Gar Fac Gar Fac Upp Upp War Pro Fac Gar Res Qua Sec Res Tes Acc Com Total 26547 | 16 902 917 135 650 1369 1094 443 878 995 805 76 770 1616 1274 46 541 790 1194 1034 1042 953 130 1355 207 2429 1419 1103 1030 775 559 Wait 2763 | . 49 270 . . 311 27 98 227 1 1 . 126 193 76 . 17 58 47 56 127 9 3 139 9 247 299 29 224 108 12 Move 20031 | 10 741 632 135 628 870 817 271 566 975 767 76 609 1116 998 41 348 633 1096 941 766 901 117 972 162 1792 792 858 558 384 459 Hop 5 | . . . . . . . . . . . . . . . . . . . . . . . . . . . . . . 5 Pick Up 290 | 1 27 1 . 3 25 14 7 5 . . . . 39 9 1 15 8 . . 7 2 . 23 2 34 15 24 13 12 3 Fast Attach 324 | . 4 1 . . 10 4 5 9 2 3 . 2 20 9 . 6 3 1 1 4 . . 9 6 54 53 57 19 15 27 Attach 135 | . 2 . . . 6 5 2 2 . . . 1 21 5 2 2 . . 1 3 2 3 10 2 6 16 9 6 25 4 Detach 46 | . . . . . 1 . 1 3 1 . . 1 3 2 . 2 2 . 2 1 . 1 1 2 3 3 9 5 1 2 Swap 414 | . 8 . . . 20 18 10 8 5 2 . . 27 19 2 28 24 7 2 12 8 3 27 6 73 48 13 18 25 1 Drop 520 | . 17 2 . 3 39 16 11 16 2 4 . 2 36 19 . 21 14 4 2 11 1 . 23 6 100 44 65 33 17 12 Fire 1632 | 5 54 9 . 10 85 90 38 36 9 28 . 28 155 90 . 77 37 23 26 21 30 3 145 11 120 149 34 108 177 34 Melee 93 | . . . . . . 61 . 6 . . . . 5 3 . 2 11 5 . . . . . . . . . . . . Ram . | . . . . . . . . . . . . . . . . . . . . . . . . . . . . . . . Kick . | . . . . . . . . . . . . . . . . . . . . . . . . . . . . . . . Crush 13 | . . 2 . 6 2 . . . . . . . 1 . . . . . . . . . . 1 . . . 1 . . Escape Stasis 52 | . . . . . . 8 . . . . . . . 26 . 4 . . . . . . 6 . . . . . 8 . Rewire 221 | . . . . . . 34 . . . . . 1 . 18 . 19 . 11 3 90 . . . . . . . 45 . . Trap . | . . . . . . . . . . . . . . . . . . . . . . . . . . . . . . . Miscellaneous 8 | . . . . . . . . . . . . . . . . . . . . . . . . . . . 5 . 3 . Route ------- -11/Scrapyard -10/Materials (discovered 4 exits: [*Mat x3] / *Min) -10/Mines (discovered 3 exits: [*Mat x2] / *Exi) -10/Exiles (discovered 2 exits: *Min x2) -9/Mines (discovered 2 exits: *Mat x2) -8/Materials (discovered 5 exits: *Fac x3 / *Sto / Gar) -8/Garrison (discovered 4 exits: *Mat x4) -8/Materials (discovered 4 exits: *Fac x3 / *Sto) -7/Factory -7/Lower Caves -7/Lower Caves (discovered 2 exits: *Fac / *Dat) -7/Data Miner -6/Proximity Caves -6/Factory (discovered 4 exits: *Fac / *Low x2 / Gar) -6/Garrison (discovered 3 exits: *Fac x3) -5/Factory -5/Garrison (discovered 2 exits: *Fac / *Fac) -5/Factory (discovered 4 exits: *Upp x2 / *Ext x2) -5/Upper Caves -5/Upper Caves (discovered 2 exits: *Fac / *War) -5/Warlord -4/Proximity Caves -4/Factory -4/Garrison (discovered 3 exits: *Res x3) -3/Research (discovered 5 exits: Res x2 / Arm / *Qua x2) -3/Quarantine (discovered 2 exits: *Res / *Sec) -3/Section 7 -2/Research (discovered 4 exits: *Acc x2 / *Tes x2) -2/Testing -1/Access -1/Command (discovered 1 exit: [*Sur]) History --------- Turn | Location | Event 17 | -11/Scrapyard | Discovered new exit (range 3) 30 | -11/Scrapyard | Entered Materials 302 | -10/Materials | Build established: Mutant 321 | -10/Materials | Discovered new exit (range 11) 611 | -10/Materials | Discovered new exit (range 14) 1001 | -10/Materials | Discovered new exit (range 16) 1212 | -10/Materials | Central database locked down 1431 | -10/Materials | Discovered new exit (range 16) 1536 | -10/Materials | Repaired Med. Armor Plating 2276 | -10/Materials | Entered Mines 2277 | -10/Mines | Assembled infested the area 2690 | -10/Mines | Discovered new exit (range 8) 2735 | -10/Mines | Learned Materials emergency access door positions 3029 | -10/Mines | Central database locked down 3100 | -10/Mines | Discovered new exit (range 5) 4020 | -10/Mines | Learned location of Mines (-9) 4050 | -10/Mines | Met a Derelict shopkeep closing up shop 4156 | -10/Mines | Discovered new exit (range 15) 4605 | -10/Mines | Entered Exiles 4605 | -10/Exiles | Accompanied by 2 allies 4606 | -10/Exiles | Identified exit to Mines 4635 | -10/Exiles | Led the pair of lost Derelicts to a safe place 4685 | -10/Exiles | Met 8R-AWN 4737 | -10/Exiles | Met EX-HEX 4884 | -10/Exiles | Met EX-DEC 4897 | -10/Exiles | Learned location of Zion (-6) 5037 | -10/Exiles | Entered Mines 5055 | -9/Mines | Received a Rocket Launcher from a helpful Derelict 5349 | -9/Mines | Discovered new exit (range 8) 5455 | -9/Mines | Found a hidden stash of uninstalled traps 5477 | -9/Mines | Discovered new exit (range 13) 5496 | -9/Mines | Received a Mining Laser from a helpful Derelict 7100 | -9/Mines | Entered Materials 7100 | -8/Materials | Evolved 4 slots: Propulsion x1, Utility x2, Weapon x1 7101 | -8/Materials | Identified exit to Storage 7744 | -8/Materials | Build established: Tank 8002 | -8/Materials | Repaired Med. Armor Plating 8029 | -8/Materials | Repaired Lgt. Treads 8063 | -8/Materials | Repaired Med. Armor Plating 8090 | -8/Materials | Repaired Lgt. Treads 8130 | -8/Materials | Build established: Mutant 8321 | -8/Materials | Discovered new exit (range 3) 8587 | -8/Materials | Central database locked down 8682 | -8/Materials | Build established: Tank 8847 | -8/Materials | Discovered new exit (range 16) 9377 | -8/Materials | Discovered new exit (range 10) 9924 | -8/Materials | Identified exit to Garrison 9924 | -8/Materials | Entered Garrison 9990 | -8/Garrison | Triggered checkpoint 10073 | -8/Garrison | Build established: Scavenger-Mutant 10222 | -8/Garrison | Triggered checkpoint 10224 | -8/Garrison | Triggered checkpoint 10257 | -8/Garrison | Destroyed 7 combat bots 10400 | -8/Garrison | Discovered new exit (range 10) 10464 | -8/Garrison | Triggered checkpoint 10527 | -8/Garrison | Triggered checkpoint 10800 | -8/Garrison | Triggered checkpoint 10831 | -8/Garrison | Build established: Scavenger-Tank 10968 | -8/Garrison | Triggered checkpoint 11150 | -8/Garrison | Triggered checkpoint 11326 | -8/Garrison | Discovered new exit (range 15) 11418 | -8/Garrison | Triggered checkpoint 11764 | -8/Garrison | Build established: Mutant 12700 | -8/Garrison | Triggered checkpoint 12728 | -8/Garrison | Discovered new exit (range 10) 12916 | -8/Garrison | Triggered checkpoint 12945 | -8/Garrison | Core integrity fell below 50% 13002 | -8/Garrison | Discovered new exit (range 5) 13037 | -8/Garrison | Entered Materials 13037 | -8/Materials | Accompanied by 1 ally 13365 | -8/Materials | Discovered exit to Storage (range 5) 13527 | -8/Materials | Repaired Hrd. Heavy Armor Plating 13772 | -8/Materials | Discovered new exit (range 13) 13837 | -8/Materials | First assault squad dispatched 13914 | -8/Materials | Destroyed 7 combat bots 13951 | -8/Materials | Identified exit to Factory 13959 | -8/Materials | System corruption reached 10% 13977 | -8/Materials | Entered Factory 13977 | -7/Factory | Evolved 2 slots: Propulsion x1, Utility x1 14798 | -7/Factory | Allied Derelicts emerged from ambush trap array 14853 | -7/Factory | Discovered new exit (range 15) 15107 | -7/Factory | Fabricated Hrd. Heavy Armor Plating (x1) 15338 | -7/Factory | Fabricated Hrd. Heavy Armor Plating? 15632 | -7/Factory | Entered Lower Caves 15638 | -7/Lower Caves | Met a Warlord Commander 15639 | -7/Lower Caves | Learned location of Warlord (-5) 15643 | -7/Lower Caves | Found Encrypted Comm Array 15688 | -7/Lower Caves | Encountered a Warlord checkpoint 15798 | -7/Lower Caves | Build established: Tank 15828 | -7/Lower Caves | Learned Research garrison access intel 15828 | -7/Lower Caves | Learned location of 1 exit from Research 16578 | -7/Lower Caves | Learned Factory emergency access door positions 16731 | -7/Lower Caves | Learned location of Extension (-5) 17099 | -7/Lower Caves | Build established: Mutant 17757 | -7/Lower Caves | Discovered new exit (range 6) 17892 | -7/Lower Caves | Entered another Lower Caves area 17893 | -7/Lower Caves | Encountered a Warlord checkpoint 17903 | -7/Lower Caves | Attracted the attention of an 0b10 checkpoint 17941 | -7/Lower Caves | Learned location of 1 exit from Factory 18046 | -7/Lower Caves | Discovered new exit (range 9) 18057 | -7/Lower Caves | Ambushed by wild Derelicts 18096 | -7/Lower Caves | Destroyed 7 combat bots 18378 | -7/Lower Caves | Build established: Tank 18497 | -7/Lower Caves | Learned location of 1 exit from Proximity Caves 18724 | -7/Lower Caves | Build established: Mutant 18734 | -7/Lower Caves | Attracted the attention of an 0b10 base 18851 | -7/Lower Caves | Learned Armory stockpile data 18851 | -7/Lower Caves | Learned Extension stockpile data 18851 | -7/Lower Caves | Learned Research stockpile data 18851 | -7/Lower Caves | Learned Research trap positions 19617 | -7/Lower Caves | Discovered new exit (range 13) 19736 | -7/Lower Caves | Entered Data Miner 19736 | -7/Data Miner | Discovered new exit (range 6) 19781 | -7/Data Miner | Met Data Miner 19822 | -7/Data Miner | Learned location of Section 7 (-3) 19822 | -7/Data Miner | Acquired the access code to Warlord's prototype stash 19859 | -7/Data Miner | Received God Mode back door access code from Data Miner 19913 | -7/Data Miner | Entered Proximity Caves 19914 | -6/Proximity Caves | Identified exit to Factory 20071 | -6/Proximity Caves | Escorted by Enhanced Grunt 20667 | -6/Proximity Caves | Learned Factory terminal intel 20681 | -6/Proximity Caves | Learned 4 Factory zone layouts 20824 | -6/Proximity Caves | Attracted the attention of an 0b10 outpost 20886 | -6/Proximity Caves | Destroyed 8 combat bots 21317 | -6/Proximity Caves | Received a Behemoth hack from an annoying Tinkerer 21526 | -6/Proximity Caves | Entered Factory 21526 | -6/Factory | Accompanied by 1 ally 21526 | -6/Factory | Evolved 2 slots: Utility x2 21527 | -6/Factory | Identified exit to Lower Caves 21530 | -6/Factory | Loaded intel: 26 terminal locations 21844 | -6/Factory | Garrison activated, responded to threat 22090 | -6/Factory | Identified exit to Garrison 22324 | -6/Factory | Spotted B-75 Beast 22830 | -6/Factory | Discovered exit to Lower Caves (range 6) 23045 | -6/Factory | Build established: Tank 23241 | -6/Factory | Joined by Warlord Muscle squad 23906 | -6/Factory | Lost 4 parts (1n2u1w) 23919 | -6/Factory | Destroyed 10 combat bots 24068 | -6/Factory | Build established: Scavenger-Mutant 24184 | -6/Factory | Discovered new exit (range 5) 24244 | -6/Factory | Joined by Warlord Ranger squad 24326 | -6/Factory | First assault squad dispatched 24336 | -6/Factory | Repaired Adv. Treads 24345 | -6/Factory | Incoming assault squad redirected 24425 | -6/Factory | Build established: Mutant 24527 | -6/Factory | Joined by Warlord Infantry squad 24628 | -6/Factory | Incoming investigation squad redirected 24701 | -6/Factory | Incoming assault squad redirected 24830 | -6/Factory | Repaired Imp. Light Armor Plating 24861 | -6/Factory | Identified exit to Garrison 24869 | -6/Factory | Entered Garrison 24916 | -6/Garrison | Triggered checkpoint 25064 | -6/Garrison | Triggered checkpoint 25073 | -6/Garrison | Triggered checkpoint 25215 | -6/Garrison | Local machine network offline 25313 | -6/Garrison | Discovered new exit (range 10) 25426 | -6/Garrison | Triggered checkpoint 25512 | -6/Garrison | Triggered checkpoint 25674 | -6/Garrison | Triggered checkpoint 25820 | -6/Garrison | Discovered new exit (range 12) 25971 | -6/Garrison | Triggered checkpoint 25999 | -6/Garrison | Build established: Scavenger-Mutant 26128 | -6/Garrison | Triggered checkpoint 26388 | -6/Garrison | Discovered new exit (range 10) 26872 | -6/Garrison | Triggered checkpoint 26995 | -6/Garrison | Found embedded Infiltrators 27027 | -6/Garrison | Attempted to access garrison exit controls, blocked by remote lockdown 27313 | -6/Garrison | Attempted to access garrison exit controls, blocked by remote lockdown 27575 | -6/Garrison | Entered Factory 27575 | -5/Factory | Accompanied by 3 allies 27575 | -5/Factory | Evolved 2 slots: Propulsion x2 27644 | -5/Factory | Identified exit to Garrison 27645 | -5/Factory | Entered Garrison 27645 | -5/Garrison | Accompanied by 3 allies 27664 | -5/Garrison | Triggered checkpoint 27740 | -5/Garrison | Triggered checkpoint 27887 | -5/Garrison | Found Adv. Powered Armor 27892 | -5/Garrison | Found Adv. Powered Armor 27896 | -5/Garrison | Found Adv. Powered Armor 27922 | -5/Garrison | Found Adv. Powered Armor 27973 | -5/Garrison | Spotted B-75 Beast 28041 | -5/Garrison | Triggered checkpoint 28041 | -5/Garrison | Triggered checkpoint 28093 | -5/Garrison | Phase Generator disabled 28181 | -5/Garrison | Triggered checkpoint 28269 | -5/Garrison | Destroyed 8 combat bots 28354 | -5/Garrison | Triggered checkpoint 28359 | -5/Garrison | Triggered checkpoint 28360 | -5/Garrison | Discovered new exit (range 10) 28384 | -5/Garrison | Triggered checkpoint 28403 | -5/Garrison | Rescued a captive Derelict 28405 | -5/Garrison | Rescued a captive Derelict 28422 | -5/Garrison | Met a derelict Sapper fleeing the area 28475 | -5/Garrison | Discovered new exit (range 3) 28503 | -5/Garrison | Entered Factory 28503 | -5/Factory | Accompanied by 5 allies 28579 | -5/Factory | Repaired Adv. Cooling System 28583 | -5/Factory | Build established: Tank 28703 | -5/Factory | Identified exit to Upper Caves 28703 | -5/Factory | Identified exit to Extension 28803 | -5/Factory | First assault squad dispatched 28828 | -5/Factory | Incoming assault squad redirected 28834 | -5/Factory | Joined by Warlord Pyro squad 28841 | -5/Factory | Incoming investigation squad redirected 28898 | -5/Factory | Spotted B-75 Beast 28952 | -5/Factory | Garrison activated, responded to threat 29002 | -5/Factory | Build established: Mutant 29064 | -5/Factory | Joined by Warlord Dakka squad 29150 | -5/Factory | Joined by Warlord Pyro squad 29278 | -5/Factory | Joined by Warlord Muscle squad 29631 | -5/Factory | Joined by Warlord Ranger squad 29723 | -5/Factory | Entered Upper Caves 29723 | -5/Upper Caves | Accompanied by 1 ally 29868 | -5/Upper Caves | Identified exit to Upper Caves 30566 | -5/Upper Caves | Spotted B-75 Beast 30599 | -5/Upper Caves | Allies destroyed B-75 Beast 31009 | -5/Upper Caves | Attracted the attention of an 0b10 outpost 31038 | -5/Upper Caves | Destroyed 7 combat bots 31560 | -5/Upper Caves | Entered another Upper Caves area 31560 | -5/Upper Caves | Accompanied by 3 allies 31576 | -5/Upper Caves | Discovered new exit (range 13) 31899 | -5/Upper Caves | Attracted the attention of an 0b10 outpost 31945 | -5/Upper Caves | Destroyed 7 combat bots 31945 | -5/Upper Caves | Learned Factory emergency access door positions 32576 | -5/Upper Caves | Discovered new exit (range 12) 32578 | -5/Upper Caves | Encountered a Warlord checkpoint 33138 | -5/Upper Caves | Entered Warlord 33138 | -5/Warlord | Accompanied by 2 allies 33701 | -5/Warlord | Build established: Commander-Mutant 33860 | -5/Warlord | Met Warlord 33874 | -5/Warlord | Opened Warlord's prototype stash 33880 | -5/Warlord | Found Prototype Device 33880 | -5/Warlord | Identified Thermal Barrier 33885 | -5/Warlord | Warlord's base attacked by MAIN.C 33901 | -5/Warlord | Found Prototype Reactor 34044 | -5/Warlord | Found Prototype Energy Gun 34044 | -5/Warlord | Identified Vortex Rail 34052 | -5/Warlord | Found Vortex Rail 34235 | -5/Warlord | Warlord forces counterattacked 34467 | -5/Warlord | Build established: Commander-Tank 34532 | -5/Warlord | Spotted Executioner 34536 | -5/Warlord | Destroyed Executioner 34560 | -5/Warlord | Warlord base infiltrated, sounded retreat 34644 | -5/Warlord | Spotted Striker 34672 | -5/Warlord | Discovered new exit (range 14) 34714 | -5/Warlord | Entered Proximity Caves 34714 | -4/Proximity Caves | Accompanied by 5 allies 34756 | -4/Proximity Caves | Destroyed 7 combat bots 34975 | -4/Proximity Caves | Spotted B-86 Titan 34995 | -4/Proximity Caves | Destroyed B-86 Titan 35288 | -4/Proximity Caves | Build established: Mutant 35306 | -4/Proximity Caves | Discovered new exit (range 13) 35583 | -4/Proximity Caves | Learned location of 1 exit from Research 36230 | -4/Proximity Caves | System corruption reached 10% 36231 | -4/Proximity Caves | Entered Factory 36231 | -4/Factory | Accompanied by 1 ally 36231 | -4/Factory | Evolved 2 slots: Power x1, Utility x1 36487 | -4/Factory | Identified exit to Garrison 36487 | -4/Factory | Entered Garrison 36487 | -4/Garrison | Accompanied by 1 ally 36494 | -4/Garrison | Triggered checkpoint 36846 | -4/Garrison | Spotted B-86 Titan 36924 | -4/Garrison | Triggered checkpoint 36937 | -4/Garrison | Triggered checkpoint 36967 | -4/Garrison | Identified Vortex Chain Reactor 36975 | -4/Garrison | Destroyed B-86 Titan 36996 | -4/Garrison | Destroyed 7 combat bots 36996 | -4/Garrison | Lost 3 parts (1p2u) 37228 | -4/Garrison | Triggered checkpoint 37229 | -4/Garrison | Build established: Tank 37455 | -4/Garrison | Discovered new exit (range 15) 37506 | -4/Garrison | Triggered checkpoint 37634 | -4/Garrison | Spotted B-86 Titan 37644 | -4/Garrison | Spotted B-86 Titan 37796 | -4/Garrison | Attempted to access garrison exit controls, blocked by remote lockdown 37818 | -4/Garrison | Destroyed B-86 Titan 37859 | -4/Garrison | Destroyed B-86 Titan 37956 | -4/Garrison | Found Unknown Device 37956 | -4/Garrison | Identified Adv. Force Booster 37975 | -4/Garrison | Found Gamma Bomb Array 37979 | -4/Garrison | Found Gamma Bomb Array 38303 | -4/Garrison | Triggered checkpoint 38490 | -4/Garrison | Triggered checkpoint 38859 | -4/Garrison | Build established: Scavenger-Mutant 38995 | -4/Garrison | Discovered new exit (range 11) 39031 | -4/Garrison | Attempted to access garrison exit controls, blocked by remote lockdown 39276 | -4/Garrison | Discovered new exit (range 10) 39350 | -4/Garrison | Entered Research 39350 | -3/Research | Evolved 2 slots: Utility x1, Weapon x1 39351 | -3/Research | Identified exit to Research 39352 | -3/Research | Loaded intel: 101 trap records 39354 | -3/Research | Loaded intel: 3 garrison access locations 39509 | -3/Research | Identified exit to Armory 39509 | -3/Research | Identified exit to Quarantine 39600 | -3/Research | First assault squad dispatched 39652 | -3/Research | Incoming investigation squad redirected 39668 | -3/Research | Entered Quarantine 39739 | -3/Quarantine | Cryocooling Duct disabled 39747 | -3/Quarantine | Cryocooling Duct disabled 39754 | -3/Quarantine | Ambient heat levels rising (+20) 39754 | -3/Quarantine | Non-combat units ordered to evacuate 39762 | -3/Quarantine | Ambient heat levels rising (+20) 39762 | -3/Quarantine | Combat units ordered to evacuate 39862 | -3/Quarantine | Quarantine Guard activated 39982 | -3/Quarantine | Found Alien Launcher 40002 | -3/Quarantine | Spotted Quarantine Guard 40036 | -3/Quarantine | Spotted Quarantine Guard 40040 | -3/Quarantine | Destroyed Quarantine Guard 40067 | -3/Quarantine | Destroyed Quarantine Guard 40196 | -3/Quarantine | Spotted Quarantine Guard 40230 | -3/Quarantine | Destroyed Quarantine Guard 40337 | -3/Quarantine | Spotted Quarantine Guard 40343 | -3/Quarantine | Build established: Scavenger-Tank 40367 | -3/Quarantine | Destroyed Quarantine Guard 40528 | -3/Quarantine | Spotted Quarantine Guard 40529 | -3/Quarantine | Destroyed Quarantine Guard 40650 | -3/Quarantine | Spotted Quarantine Guard 40659 | -3/Quarantine | Destroyed Quarantine Guard 40718 | -3/Quarantine | Found Alien Artifact 40725 | -3/Quarantine | Found Alien Artifact 40784 | -3/Quarantine | Build established: Scavenger-Mutant 40829 | -3/Quarantine | Found Alien Artifact 40829 | -3/Quarantine | Identified Core Reset Matrix 40829 | -3/Quarantine | Identified Transdimensional Reconstructor 40829 | -3/Quarantine | Identified Hpw. Transdimensional Reconstructor 40829 | -3/Quarantine | Identified Sigix Terminator 40829 | -3/Quarantine | Used Core Reset Matrix 40833 | -3/Quarantine | Detected hypermatrix surge 40833 | -3/Quarantine | Sensed 10 artifacts in vicinity 40923 | -3/Quarantine | Spotted Quarantine Guard 40934 | -3/Quarantine | Destroyed Quarantine Guard 41420 | -3/Quarantine | Spotted Quarantine Guard 41443 | -3/Quarantine | Destroyed Quarantine Guard 41591 | -3/Quarantine | Build established: Scavenger-Tank 42249 | -3/Quarantine | Spotted Quarantine Guard 42266 | -3/Quarantine | Destroyed Quarantine Guard 42270 | -3/Quarantine | Spotted Quarantine Guard 42274 | -3/Quarantine | Destroyed Quarantine Guard 42368 | -3/Quarantine | Discovered exit to Research (range 10) 42480 | -3/Quarantine | Destroyed Quarantine Guard 43116 | -3/Quarantine | Found Core Cannon 43150 | -3/Quarantine | Build established: Scavenger-Mutant 43384 | -3/Quarantine | Found Subatomic Replicator 43645 | -3/Quarantine | Spotted Fortress 43686 | -3/Quarantine | Destroyed Fortress 43919 | -3/Quarantine | Discovered new exit (range 12) 43919 | -3/Quarantine | Spotted Quarantine Guard 43928 | -3/Quarantine | Destroyed Quarantine Guard 43945 | -3/Quarantine | Build established: Scavenger-Tank 43978 | -3/Quarantine | Entered Section 7 43979 | -3/Section 7 | Sensed 24 artifacts in vicinity 44013 | -3/Section 7 | Found Integrated Mediator 44013 | -3/Section 7 | Installed Integrated Mediator, increased core attachment efficiency. 44105 | -3/Section 7 | Found Integrated Mediator 44105 | -3/Section 7 | Installed Integrated Mediator, increased core attachment efficiency. 44300 | -3/Section 7 | Found Spacefold Activator 44533 | -3/Section 7 | Spotted S7 Guard 44537 | -3/Section 7 | Destroyed S7 Guard 44560 | -3/Section 7 | Found Prototype Protection 44560 | -3/Section 7 | Identified Hvy. Regenerative Plating 44627 | -3/Section 7 | Spotted Executioner 44627 | -3/Section 7 | Spotted Executioner 44646 | -3/Section 7 | Destroyed Executioner 44653 | -3/Section 7 | Destroyed Executioner 44671 | -3/Section 7 | Found Prototype Processor 44671 | -3/Section 7 | Identified Exp. Core Analyzer 44674 | -3/Section 7 | Found Prototype Processor 44674 | -3/Section 7 | Identified Exp. Targeting Computer 44690 | -3/Section 7 | Found Prototype Device 44690 | -3/Section 7 | Identified Adv. Kinecellerator 44767 | -3/Section 7 | First assault squad dispatched 44785 | -3/Section 7 | Incoming assault squad redirected 44900 | -3/Section 7 | Found Terrabomb 44947 | -3/Section 7 | Scanned by Researcher 44991 | -3/Section 7 | Spotted B-99 Colossus 45018 | -3/Section 7 | Destroyed B-99 Colossus 45044 | -3/Section 7 | Incoming assault squad redirected 45119 | -3/Section 7 | Found Integrated Dissipator 45119 | -3/Section 7 | Installed Integrated Dissipator, increased core heat dissipation (+20) 45122 | -3/Section 7 | Found Integrated Dissipator 45122 | -3/Section 7 | Installed Integrated Dissipator, increased core heat dissipation (+20) 45125 | -3/Section 7 | Found Integrated Dissipator 45125 | -3/Section 7 | Installed Integrated Dissipator, increased core heat dissipation (+20) 45177 | -3/Section 7 | Found LRC Insulator 45177 | -3/Section 7 | Installed LRC Insulator, gained EM resistance (25) 45194 | -3/Section 7 | Found LRC Boosters 45194 | -3/Section 7 | Installed LRC Boosters, increased mass support (+10) 45285 | -3/Section 7 | Found Integrated Reactor 45285 | -3/Section 7 | Installed Integrated Reactor, increased core energy generation (+10) 45435 | -3/Section 7 | Used Terrabomb 45504 | -3/Section 7 | Found Unknown Protection 45504 | -3/Section 7 | Identified Hvy. Reflective Plating 45505 | -3/Section 7 | Incoming assault squad redirected 45558 | -3/Section 7 | Intercept squad dispatched 45587 | -3/Section 7 | Spotted Tracker 45600 | -3/Section 7 | Destroyed Tracker 45630 | -3/Section 7 | Spotted Alpha 7 45631 | -3/Section 7 | Spotted Alpha 7 45646 | -3/Section 7 | Spotted Combat Programmer 45654 | -3/Section 7 | Warped through subspace 45789 | -3/Section 7 | Spotted S7 Guard 45798 | -3/Section 7 | Destroyed S7 Guard 45800 | -3/Section 7 | Incoming assault squad redirected 45801 | -3/Section 7 | Destroyed Alpha 7 45806 | -3/Section 7 | Crushed by falling debris 45806 | -3/Section 7 | System corruption reached 10% 45824 | -3/Section 7 | Crushed by falling debris 45825 | -3/Section 7 | Found Prototype Device 45825 | -3/Section 7 | Identified Exp. ECM Suite 45835 | -3/Section 7 | Core integrity fell below 50% 45878 | -3/Section 7 | Destroyed Alpha 7 45908 | -3/Section 7 | Lost 12 parts (1p2n8u1w) 45926 | -3/Section 7 | Found Integrated Thermoelectric Network 45926 | -3/Section 7 | Installed Integrated Thermoelectric Network, gained heat-energy exchange potential 45981 | -3/Section 7 | Destroyed 9 combat bots 46038 | -3/Section 7 | Spotted B-86 Titan 46068 | -3/Section 7 | System corruption reached 30% 46134 | -3/Section 7 | Fired Sigix Terminator 46134 | -3/Section 7 | Destroyed Combat Programmer 46134 | -3/Section 7 | Destroyed B-86 Titan 46134 | -3/Section 7 | High security lockdown imminent 46136 | -3/Section 7 | Discovered exit to Research (range 14) 46157 | -3/Section 7 | Entered Research 46157 | -2/Research | Warlord forces began assault on 0b10 46157 | -2/Research | Evolved 2 slots: Utility x1, Weapon x1 46165 | -2/Research | Lost 10 parts (1p3n2u4w) 46182 | -2/Research | Distinguished unit "Railsplitters" dispatched to help 46182 | -2/Research | Distinguished unit "Railsplitters" dispatched to help 46263 | -2/Research | Spotted B-90 Cyclops 46267 | -2/Research | Research machine network offline 46416 | -2/Research | Discovered new exit (range 31) 46423 | -2/Research | Spotted Striker 46649 | -2/Research | Borebot progress halted 46653 | -2/Research | Met up with Warlord 46794 | -2/Research | Discovered new exit (range 86) 46973 | -2/Research | Borebot progress halted 47019 | -2/Research | Spotted W3-3XB(K) 47023 | -2/Research | Spotted DX-WJM(L) 47036 | -2/Research | Spotted Striker 47073 | -2/Research | Identified exit to Access 47154 | -2/Research | Build established: Alien-Mutant 47257 | -2/Research | Found Unknown Device 47257 | -2/Research | Identified Launcher Loader 47305 | -2/Research | Crushed by falling debris 47342 | -2/Research | Spotted Tracker 47344 | -2/Research | Spotted Tracker 47351 | -2/Research | Destroyed Tracker 47378 | -2/Research | Destroyed Tracker 47379 | -2/Research | Spotted Executioner 47387 | -2/Research | Destroyed Executioner 47394 | -2/Research | Destroyed Executioner 47410 | -2/Research | Found Prototype Device 47410 | -2/Research | Identified Exp. Phase Shifter 47433 | -2/Research | Spotted Combat Programmer 47443 | -2/Research | Spotted Striker 47449 | -2/Research | Destroyed Striker 47455 | -2/Research | Destroyed Combat Programmer 47465 | -2/Research | Spotted Executioner 47481 | -2/Research | Build established: Alien-Tank 47483 | -2/Research | Spotted Executioner 47485 | -2/Research | Destroyed Executioner 47627 | -2/Research | Found Unknown Launcher 47627 | -2/Research | Identified Fusion Bomb Launcher 47646 | -2/Research | Discovered exit to Access (range 11) 47689 | -2/Research | Discovered new exit (range 53) 47878 | -2/Research | Identified exit to Testing 47881 | -2/Research | Entered Testing 48028 | -2/Testing | Found Prototype Protection 48028 | -2/Testing | Identified SHELL Armor 48035 | -2/Testing | Found Hvy. Regenerative Plating 48131 | -2/Testing | First assault squad dispatched 48133 | -2/Testing | Garrison activated, responded to threat 48221 | -2/Testing | Found Prototype Energy Cannon 48333 | -2/Testing | Destroyed 7 combat bots 48389 | -2/Testing | Found Thermal Barrier 48478 | -2/Testing | Found Prototype Launcher 48478 | -2/Testing | Identified Tesla Bomb Launcher 48528 | -2/Testing | Found Prototype Launcher 48528 | -2/Testing | Identified Adv. Micro-nuke Launcher 48645 | -2/Testing | Garrison activated, responded to threat 48742 | -2/Testing | Destroyed 8 combat bots 48932 | -2/Testing | Spotted PH-1YY4X2LYR8 48943 | -2/Testing | Rewired PH-1YY4X2LYR8 48947 | -2/Testing | Protovariant out of control (PH-1YY4X2LYR8) 48965 | -2/Testing | Incoming assault squad redirected 49071 | -2/Testing | Spotted Alpha 7 49083 | -2/Testing | Destroyed Alpha 7 49101 | -2/Testing | Spotted 63-H6K(K) 49101 | -2/Testing | Spotted 04-F0S(K) 49101 | -2/Testing | Spotted E6-LGW(K) 49138 | -2/Testing | Rewired 63-H6K(K) 49144 | -2/Testing | Rewired 04-F0S(K) 49147 | -2/Testing | Allies destroyed E6-LGW(K) 49178 | -2/Testing | Incoming assault squad redirected 49178 | -2/Testing | Incoming assault squad redirected 49282 | -2/Testing | Incoming assault squad redirected 49343 | -2/Testing | Incoming assault squad redirected 49351 | -2/Testing | High security lockdown imminent 49418 | -2/Testing | Discovered exit to Access (range 8) 49429 | -2/Testing | Entered Access 49429 | -1/Access | Evolved 2 slots: Power x1, Utility x1 49708 | -1/Access | First assault squad dispatched 49732 | -1/Access | Incoming assault squad redirected 49891 | -1/Access | Crushed by falling debris 49896 | -1/Access | Crushed by falling debris 50011 | -1/Access | Destroyed 9 combat bots 50151 | -1/Access | Found Unknown Protection 50154 | -1/Access | Destroyed 13 combat bots 50161 | -1/Access | Lost 3 parts (2p1w) 50205 | -1/Access | Incoming assault squad redirected 50209 | -1/Access | High security lockdown imminent 50266 | -1/Access | Destroyed 9 combat bots 50274 | -1/Access | Spotted B-99 Colossus 50277 | -1/Access | Identified Powered Armor 50289 | -1/Access | High security lockdown engaged 50301 | -1/Access | Warped through subspace 50330 | -1/Access | Lost 3 parts (1p2u) 50403 | -1/Access | Spotted Striker 50408 | -1/Access | Destroyed Striker 50429 | -1/Access | Destroyed 16 combat bots 50478 | -1/Access | Spotted Striker 50478 | -1/Access | Spotted Executioner 50479 | -1/Access | Spotted Investigator 50481 | -1/Access | Destroyed Executioner 50485 | -1/Access | Destroyed Striker 50510 | -1/Access | Destroyed 10 combat bots 50511 | -1/Access | Destroyed Investigator 50602 | -1/Access | Spotted Executioner 50604 | -1/Access | Spotted Striker 50609 | -1/Access | Spotted Executioner 50610 | -1/Access | Destroyed 9 combat bots 50610 | -1/Access | Spotted Striker 50634 | -1/Access | Destroyed Striker 50645 | -1/Access | Destroyed Striker 50653 | -1/Access | Destroyed Executioner 50666 | -1/Access | System corruption reached 10% 50687 | -1/Access | Energy Cycler disabled 50701 | -1/Access | Destroyed Executioner 50746 | -1/Access | Intercept squad dispatched 50750 | -1/Access | Lost 7 parts (2n3u2w) 50765 | -1/Access | Spotted Tracker 50766 | -1/Access | Spotted Tracker 50767 | -1/Access | Destroyed Tracker 50775 | -1/Access | Spotted Combat Programmer 50775 | -1/Access | Destroyed Tracker 50792 | -1/Access | Spotted Striker 50794 | -1/Access | Spotted Striker 50801 | -1/Access | Spotted Striker 50806 | -1/Access | Spotted Striker 50808 | -1/Access | Identified Imp. Potential Cannon 50817 | -1/Access | Core integrity fell below 50% 50825 | -1/Access | Destroyed 35 combat bots 50829 | -1/Access | Emitted hypermatrix ping 50834 | -1/Access | Assembled emerged from beneath the floor 50845 | -1/Access | Assembled emerged from beneath the floor 50849 | -1/Access | Spotted Striker 50851 | -1/Access | Lost 11 parts (2p3n3u3w) 50859 | -1/Access | Spotted Combat Programmer 50863 | -1/Access | Discovered new exit (range 8) 50867 | -1/Access | Identified exit to Command 50867 | -1/Access | Entered Command 50868 | -1/Command | Emitted hypermatrix ping 50873 | -1/Command | Assembled emerged from beneath the floor 50884 | -1/Command | Core integrity fell below 20% 50923 | -1/Command | Assembled emerged from beneath the floor 50948 | -1/Command | Found Unknown Launcher 50948 | -1/Command | Identified Gamma Bomb Array 51024 | -1/Command | Assembled emerged from beneath the floor 51121 | -1/Command | Build established: Alien-Mutant 51150 | -1/Command | System corruption reached 30% 51165 | -1/Command | First assault squad dispatched 51185 | -1/Command | Incoming assault squad redirected 51186 | -1/Command | Incoming assault squad redirected 51189 | -1/Command | Incoming assault squad redirected 51222 | -1/Command | Lost 3 parts (3u) 51225 | -1/Command | Destroyed 7 combat bots 51236 | -1/Command | Incoming assault squad redirected 51266 | -1/Command | Incoming assault squad redirected 51273 | -1/Command | Assembled emerged from beneath the floor 51289 | -1/Command | Lost 5 parts (5u) 51291 | -1/Command | Spotted B-99 Colossus 51291 | -1/Command | Spotted B-99 Colossus 51291 | -1/Command | Spotted Executioner 51291 | -1/Command | Spotted Executioner 51291 | -1/Command | Spotted Striker 51292 | -1/Command | Spotted Executioner 51292 | -1/Command | Spotted Alpha 7 51293 | -1/Command | Discovered new exit (range 5) 51293 | -1/Command | Destroyed by Executioner with Helical Railgun Last Messages --------------- 51289_ Slug penetrates L-61 Swordsman. 51289_ Acquired 15 matter. 51291_ Penetrated by Slug. 51291_ Imp. Propulsion Shielding destroyed. 51291_ Penetrated by Slug. 51291_ Slug penetrates Wall. 51291_ Slug penetrates Reinforced Barrier. 51291_ Penetrated by Slug. 51291_ Slug penetrates Wall. 51292_ Slug penetrates Access Shell. 51292_ Penetrated by Slug. 51293_ Slug penetrates Access Shell. 51293_ EXIT=FOUND 51293_ Slug penetrates B-99 Colossus. 51293_ Triggered Stasis Trap. 51293_ A bubble of rippling energy engulfs the area. 51293_ Field strength at 93. 51293_ Slug penetrates Striker. 51293_ Slug penetrates Terminal. 51293_ Terminal disabled. Map ----- +----------------------------------------------------+ | #??? # #????????????# #?????? | | #??? # #????????????# #?????? | | #?? # #????????????# "" #?????? | | #?? # #????????????#"""" #?????? | | #? # #????????????#"""" #?????? | | ## # #????????????? "" #?????? | | + # #??????????????? #?????? | | ## # #?????????????? #?????? | | #? # ???????????????############?????? | | #######+## ????????????????????????????????? | | "%" ???????? ???????????????????????? | | " ???????? ???????????????????????? | | ### #######??????????? ???????????????????????? | | #??? #?????????????????;???????????????????????? | | #????#?????????????????;#??????????????????????? | | #?????????????????????#;#??##??????????????????? | | #????????????????????? ?BB#??????????????????? | | #????????????????????? ?BB#####?#????????????? | | #????????????????????? ? # #E# # #??????????? | | #??????????????????"""" " 7 ??????????? | | #??????????????????" " E K ??????????? | | #??????????????#???" "" " ?????????? | | #??????????????# ??" <" ?????????? | | #??????????????# ?? /????????? | | #??????????????# """ E ????????????? | | #??? #?????????# @^ #??????????????????? | | ### #?????????# BB#??????????????????? | | # #??# % BB#??????????????????? | | / #??#;######;;####??????????????????? | | +#### # #?????????#;##?????????????????????? | | ## #??? #??????####;#??????????????????????? | | ## ####+########## =#??????????????????????? | | ## " ##?????????????????????? | | * ## " ;#?????????????????????? | | ## ########## ##?????????????????????? | | ## #?#########+####?????????????????????? | | ## #?# #?????????????????????? | | ## * #?# | = #?????????????????????? | | ## #?# *%= #?????????????????????? | | ## #?#=%[ [ #?????????????????????? | | ## #?#==%= == = #?????????????????????? | | ## ####/####+######?????????????????????? | | ##/## ??????????????????? | | ?# ??????????????????? | | ?####/##############+#######?????????????????????? | | ???"" ?????????????????????????????????????????? | | ?"Y"" ???????????????????????????????????????? | | #?????????????????????????????????????? | | #?????????????????????????????????????? | | / #?????????????????????????????????????? | +----------------------------------------------------+ Best States ------------- Heat Dissipation 140 Coolant Potential 120 Energy Generation 75 Energy Capacity 910 Matter Stores 651 Matter Capacity 800 Sight Range 16 Robot Scan Range 18 Terrain Scan Range 20 Terrain Scan Density 10 ECM Strength 3 Jamming Range 12 Base Temperature (-) 200 Corruption Block 20 Armor Coverage 3800 Resistance: KI 25 Resistance: TH 50 Resistance: EM 25 Core Shielding 30 Propulsion Shielding 66 Point Defense Rating 160 Weapon Cycling 25 Phase Shifting 20 Evasion (%) 62 Targeting Accuracy 5 Core Analysis 8 Recoil Reduction 6 Matter Filtering 30 Offensive Hacking 12 Defensive Hacking 12 Item Schematics ----------------- Adv. Heavy Siege Treads | -3/Quarantine | Hacked Thermal Defense Suite | -3/Section 7 | Archive Exp. Cooling System | -3/Section 7 | Archive Enh. Armored Medium Treads | -2/Testing | Archive Hvy. Neutron Cannon | -2/Testing | Archive Adv. EM Disruption Field | -2/Testing | Archive Exp. Shock Absorption System | -2/Testing | Archive Robot Schematics ------------------ A-27 Freighter | -2/Testing | Archive A-15 Conveyor | -2/Testing | Archive B-74 Champion | -2/Testing | Archive Fabricated ------------ Hrd. Heavy Armor Plating | x1 | -7/Factory Hrd. Heavy Armor Plating | x1 | -7/Factory Alien Tech Used ----------------- Core Reset Matrix Integrated Mediator Spacefold Activator Integrated Dissipator LRC Insulator LRC Boosters Integrated Reactor Terrabomb Transdimensional Reconstructor Integrated Thermoelectric Network Sigix Terminator Core Cannon High-powered Transdimensional Reconstructor Subatomic Replicator Achievements -------------- None Challenges ------------ None Game ------ Seed SchematicNavigationGravjet Manual? 0 Play Time 10:31:54 Cumulative 806.2 hours Start 2022.07.26 @ 18:43:28 End 2022.07.29 @ 18:45:38 Sessions 19 Manual Loads 0 Difficulty Rogue Special Mode None Game No. 190 Rogue 158 Adventurer 31 Explorer 1 Win Type - Total 38 Types 28/0/5/4/0/0/1/0/0 Lore% 85 Gallery% 88 Achievement% 76 Wizard Run 0 Options --------- ASCII 0 Keyboard 0 Movement Arrows Keybinds 0 Fullscreen 1 Font 20/Terminus Map View 66x50 Tactical HUD 1 Map Filters NONE Filters NONE Steam 1 RUN: cd546022-8657-4537-88f6-e81bad16d898